{"text_format":"1","workbook":"xlsx","n_sheets":2,"sheets":["Deployment information","Predefined lists"],"not_rendered":{"charts":0,"images":0,"macros":1,"external_links":0,"defined_names":19,"comments":0,"pivot_tables":0},"unopened":[],"bounds":{"document_bytes":16777216,"sheet_cells":100000,"rows_first":2000,"rows_last":500,"rows_between":2000,"halvings":0,"cell_chars":16384,"cell_head_chars":4096},"cells_cut":0,"cells_raw":0,"read":"whole","date_system":"1900"}

{"sheet":"Deployment information","index":0,"n_rows":290,"n_cols":22,"rows_kept":290,"cut":false,"hidden":false,"merged":[]}
["Id","SECTION","DIM LEVEL","KEY","VALUE","DEFAULT VALUE","UNIT","SHORT NAME","DESCRIPTION",null,null,null,null,null,"PLATFORM_CODE","TECH_PARAMETER_ID","DIM_LEVEL","PARAMETER_VALUE","TECH_PARAMETER_CODE"]
[17,null,null,null,null,null,null,null,null,null,null,null,null,null,{"$f":"$E$20","v":6903267}]
[17,"TITLE",1,"TITLE","DEEP-ARVOR – 4000m",null,null,"Title of the deployment file",null,null,null,null,null,null,{"$f":"$E$20","v":6903267},390,{"$f":"C3","v":1},{"$f":"E3","v":"DEEP-ARVOR – 4000m"},"PLATFORM_MODEL"]
[17,null,null,null,null,null,null,null,null,null,null,null,null,null,6903267,null,null,{"$f":"IF(ISBLANK(E4),\"\",E4)","v":""}]
[17,"ARGO PROJECT INFORMATION",1,"PI_NAME","Pierre-Marie Poulain",null,null,"Name of the Principal Investigator of the float",null,null,null,null,null,null,6903267,394,{"$f":"C5","v":1},{"$f":"IF(ISBLANK(E5),\"\",E5)","v":"Pierre-Marie Poulain"},"PI_NAME"]
[17,"ARGO PROJECT INFORMATION",1,"PROJECT_NAME","Argo-Italy",null,null,"Name of the project which operates the profiling float",null,null,null,null,null,null,6903267,15,1,"Argo-Italy","PR_EXPERIMENT_ID"]
[17,"ARGO PROJECT INFORMATION",1,"FLOAT_OWNER","OGS",null,null,"The owner of the float (may be different from the data centre and operating institution)",null,null,null,null,null,null,6903267,1257,1,"OGS","FLOAT_OWNER"]
[17,"ARGO PROJECT INFORMATION",1,"OPERATING_INSTITUTION","OGS",null,null,"The operating institution of the float (may be different from the float owner and data centre)",null,null,null,null,null,null,6903267,1258,1,"OGS","OPERATING_INSTITUTION"]
[17,null,null,null,null,null,null,null,null,null,null,null,null,null,6903267,null,null,""]
[17,"PLATFORM INFORMATION",1,"PLATFORM_FAMILY","FLOAT_DEEP",null,null,"Category of instrument",null,null,null,null,null,null,6903267,2081,1,"FLOAT_DEEP","PLATFORM_FAMILY"]
[17,"PLATFORM INFORMATION",1,"PLATFORM_TYPE","ARVOR_D",null,null,"Type of float",null,null,null,null,null,null,6903267,2209,1,"ARVOR_D","PLATFORM_TYPE"]
[17,"PLATFORM INFORMATION",1,"WMO_INST_TYPE ",838,null,null,"Instrument type from WMO code table 1770",null,null,null,null,null,null,6903267,13,1,838," PR_PROBE_CODE "]
[17,"PLATFORM INFORMATION",1,"PLATFORM_MAKER","NKE",null,null,"Name of the manufacturer",null,null,null,null,null,null,6903267,391,1,"NKE","PLATFORM_MAKER"]
[17,"PLATFORM INFORMATION",1,"BATTERY_TYPE","Lithium",null,null,"Describes the type of battery packs in the float",null,null,null,null,null,null,6903267,1248,1,"Lithium","BATTERY_TYPE"]
[17,"PLATFORM INFORMATION",1,"BATTERY_PACKS","WILPA2427",null,null,"Configuration of battery packs",null,null,null,null,null,null,6903267,1249,1,"WILPA2427","BATTERY_PACKS"]
[17,"PLATFORM INFORMATION",1,"FLOAT_SAIL_ID","18EU001",null,null,"Float sail ID",null,null,null,null,null,null,6903267,2082,1,"18EU001","FLOAT_SAIL_ID"]
[17,"PLATFORM INFORMATION",1,"FLOAT_SERIAL_NUMBER","AD2700-18EU001",null,null,"Float serial number",null,null,null,null,null,null,6903267,392,1,"AD2700-18EU001","INST_REFERENCE"]
[17,"PLATFORM INFORMATION",1,"CONTROLLER_BOARD_TYPE_PRIMARY","I535",null,null,"Describes the type of controller board",null,null,null,null,null,null,6903267,1250,{"$f":"IF(ISBLANK(C18),\"\",C18)","v":1},"I535","CONTROLLER_BOARD_TYPE_PRIMARY"]
[17,"PLATFORM INFORMATION",1,"CONTROLLER_BOARD_SERIAL_NO_PRIMARY","C157946-0112",null,null,"The serial number for the primary controller board",null,null,null,null,null,null,6903267,1252,1,"C157946-0112","CONTROLLER_BOARD_SERIAL_NO_PRIMA"]
[17,"PLATFORM INFORMATION",1,"WMO_NUMBER",6903267,null,null,"Float WMO number",null,null,null,null,null,null,6903267,null,1,6903267]
[17,"PLATFORM INFORMATION",1,"IMEI",300234066572080,null,null,"IMEI number",null,null,null,null,null,null,6903267,1243,1,300234066572080,"IMEI"]
[17,"PLATFORM INFORMATION",1,"BLUETOOTH_NUMBER","2017 12 0112",null,null,"Float bluetooth number",null,null,null,null,null,null,6903267,2085,1,"2017 12 0112","BLUETOOTH_NUMBER"]
[17,"PLATFORM INFORMATION",1,"FIRMWARE_VERSION","5608A13 ",null,null,"Float firmware version",null,null,null,null,null,null,6903267,961,1,"5608A13 ","FIRMWARE_VERSION"]
[17,"PLATFORM INFORMATION",1,"MANUAL_VERSION ",null,null,null,"Float manual version date or number",null,null,null,null,null,null,6903267,1244,1,"","MANUAL_VERSION "]
[17,"PLATFORM INFORMATION",1,"FIRMWARE_CHECKSUM",null,null,null,"Firmware checksum (copy of PRE_DEPLOY_FIRMWARE_CHECKSUM parameter value)",null,null,null,null,null,null,6903267,2086,1,null,"FIRMWARE_CHECKSUM"]
[17,"PLATFORM INFORMATION",1,"CORIOLIS_DECODER_VERSION",null,null,null,"Coriolis decoder version",null,null,null,null,null,null,6903267,2,1,"","PR_VERSION"]
[17,null,null,null,null,null,null,null,null,null,null,null,null,null,6903267]
[17,"DEPLOYMENT CHECKS",1,"DEPLOY_VISUAL_CHECK","OK",null,null,"Comment after visual inspection of the float",null,null,null,null,null,null,6903267,2087,{"$f":"C28","v":1},{"$f":"IF(ISBLANK(E28),\"\",E28)","v":"OK"},"DPLY_FLOAT_VISUAL_CHECK_CMT"]
[17,"DEPLOYMENT CHECKS",1,"DEPLOY_BALLAST_CHECK","OK",null,null,"Comment after visual inspection of the ballast",null,null,null,null,null,null,6903267,2088,{"$f":"C29","v":1},{"$f":"IF(ISBLANK(E29),\"\",E29)","v":"OK"},"DPLY_BALLAST_VISUAL_CHECK_CMT"]
[17,"DEPLOYMENT INFORMATION",1,"DEPLOY_MISSION","Greek-Argo July 2019",null,null,"Deployment mission name (cruise name)",null,null,null,null,null,null,6903267,429,1,"Greek-Argo July 2019","CRUISE_NAME"]
[17,"DEPLOYMENT INFORMATION",1,"DEPLOY_SHIP","R/V AEGAEO",null,null,"Deployment ship name",null,null,null,null,null,null,6903267,399,1,"R/V AEGAEO","DEPLOY_PLATFORM"]
[17,"DEPLOYMENT INFORMATION",1,"DEPLOY_OPERATOR_NAME","Dimitris Kassis, HCMR",null,null,"Name of the operator in charge of the deployment",null,null,null,null,null,null,6903267,2097,1,"Dimitris Kassis, HCMR","DPLY_OPERATOR_NAME"]
[17,"DEPLOYMENT INFORMATION",1,"DEPLOY_PROFILE_DONE","yes",null,null,"CTD or XBT profile done during deployment (yes/no)",null,null,null,null,null,null,6903267,401,1,"yes","DEPLOY_AVAILABLE_PROFILE_ID"]
[17,"DEPLOYMENT INFORMATION",1,"DEPLOY_MAGNET_REMOVAL_TIME","2019-07-19T21:10:00",null,null,"Magnet removal  time (dd/mm/yyyy hh:mm)",null,null,null,null,null,null,6903267,2089,1,"2019-07-19T21:10:00","STARTUP_DATE"]
[17,"DEPLOYMENT INFORMATION",1,"DEPLOY_FLOAT_INTERNAL_CHECK","OK",null,null,"Comment on float internal checks (valve and pump actions, argos transmission check) ",null,null,null,null,null,null,6903267,2275,{"$f":"C35","v":1},"OK","DPLY_FLOAT_INTERNAL_CHECK_CMT"]
[17,"DEPLOYMENT INFORMATION",1,"DEPLOY_TIME","2019-07-19T21:30:00",null,null,"Deployment time ( dd/mm/yyyy hh:mm )",null,null,null,null,null,null,6903267,8,1,"2019-07-19T21:30:00","PR_LAUNCH_DATETIME"]
[17,"DEPLOYMENT INFORMATION",1,"DEPLOY_LATITUDE","36° 29.80’ N",null,null,"Deployment latitude (dd°mm,mm N/S or dd°mm'ss\" N/S)",null,null,null,null,null,null,6903267,9,1,36.496699999999997,"PR_LAUNCH_LATITUDE"]
[17,"DEPLOYMENT INFORMATION",1,"DEPLOY_LONGITUDE","21° 28.57’ E",null,null,"Deployment longitude  (ddd°mm,mm E/W or ddd°mm'ss\" E/W)",null,null,null,null,null,null,6903267,10,1,21.476199999999999,"PR_LAUNCH_LONGITUDE"]
[17,"DEPLOYMENT INFORMATION",1,"DEPLOY_BUOYANCY","ok",null,null,"Buoyancy description",null,null,null,null,null,null,6903267,2096,1,"ok","DPLY_BUOYANCY_DESCRIPTION"]
[17,"DEPLOYMENT INFORMATION",1,"DEPLOY_METHOD","manual",null,null,"Deployment method (release box, manual, expendable cardboard, etc…)",null,null,null,null,null,null,6903267,2098,1,"manual","DPLY_METHOD"]
[17,"DEPLOYMENT INFORMATION",1,"DEPLOY_HEIGHT",null,null,null,"Deployment height (m)",null,null,null,null,null,null,6903267,2276,1,null,"DPLY_HEIGHT"]
[17,"DEPLOYMENT INFORMATION",1,"DEPLOY_SHIP_SPEED",null,null,null,"Ship speed (kts)",null,null,null,null,null,null,6903267,2277,1,null,"DPLY_SHIP_SPEED"]
[17,"DEPLOYMENT INFORMATION",1,"DEPLOY_WIND_SPEED",4,null,null,"Wind speed (Beaufort)",null,null,null,null,null,null,6903267,2278,1,4,"DPLY_WIND_SPEED"]
[17,"DEPLOYMENT INFORMATION",1,"DEPLOY_SEA_STATE",null,null,null,"Sea state (calm, smooth, slight, moderate, rough, very rough, high, very high, phenomenal)",null,null,null,null,null,null,6903267,2279,1,null,"DPLY_SEA_STATE"]
[17,"DEPLOYMENT INFORMATION",1,"DEPLOY_BATHYMETRY",4184,null,null,"Bathymetry at deployment position (m)",null,null,null,null,null,null,6903267,290,1,4184,"BATHY"]
[17,"DEPLOYMENT INFORMATION",1,"DEPLOY_NB_DAYS_UNTIL_FIRST_ASCENDING_PROFILE",1,null,null,"Number of days until the first ascending profile (copy of the PM2 parameter value)",null,null,null,null,null,null,6903267,null,{"$f":"C46","v":1},1]
[17,"DEPLOYMENT INFORMATION",1,"DEPLOY_COMMENT",null,null,null,"Miscellaneous comment on the deployment",null,null,null,null,null,null,6903267,2099,1,null,"DPLY_CMT"]
[17,null,null,"           ",null,null,null,null,null,null,null,null,null,null,6903267]
[17,"SENSOR INFORMATION",1,"SENSOR","CTD_PRES",null,null,"Sensor name",null,null,null,null,null,null,6903267,408,{"$f":"C49","v":1},{"$f":"IF(ISBLANK(E49),\"\",E49)","v":"CTD_PRES"},"SENSOR"]
[17,"SENSOR INFORMATION",1,"SENSOR_MAKER","SBE",null,null,"Sensor manufacturer",null,null,null,null,null,null,6903267,409,1,"SBE","SENSOR_MAKER"]
[17,"SENSOR INFORMATION",1,"SENSOR_MODEL","KISTLER_10153PSIA",null,null,"Sensor model",null,null,null,null,null,null,6903267,410,1,"KISTLER_10153PSIA","SENSOR_MODEL"]
[17,"SENSOR INFORMATION",1,"SENSOR_SERIAL_NUMBER",5276540,null,null,"Sensor serial number",null,null,null,null,null,null,6903267,411,1,5276540,"SENSOR_SERIAL_NO"]
[17,"SENSOR INFORMATION",2,"SENSOR","CTD_TEMP",null,null,"Sensor name",null,null,null,null,null,null,6903267,408,2,"CTD_TEMP","SENSOR"]
[17,"SENSOR INFORMATION",2,"SENSOR_MAKER","SBE",null,null,"Sensor manufacturer",null,null,null,null,null,null,6903267,409,2,"SBE","SENSOR_MAKER"]
[17,"SENSOR INFORMATION",2,"SENSOR_MODEL","SBE41CP",null,null,"Sensor model",null,null,null,null,null,null,6903267,410,2,"SBE41CP","SENSOR_MODEL"]
[17,"SENSOR INFORMATION",2,"SENSOR_SERIAL_NUMBER",10979,null,null,"Sensor serial number",null,null,null,null,null,null,6903267,411,2,10979,"SENSOR_SERIAL_NO"]
[17,"SENSOR INFORMATION",3,"SENSOR","CTD_CNDC",null,null,"Sensor name",null,null,null,null,null,null,6903267,408,3,"CTD_CNDC","SENSOR"]
[17,"SENSOR INFORMATION",3,"SENSOR_MAKER","SBE",null,null,"Sensor manufacturer",null,null,null,null,null,null,6903267,409,3,"SBE","SENSOR_MAKER"]
[17,"SENSOR INFORMATION",3,"SENSOR_MODEL","SBE41CP",null,null,"Sensor model",null,null,null,null,null,null,6903267,410,3,"SBE41CP","SENSOR_MODEL"]
[17,"SENSOR INFORMATION",3,"SENSOR_SERIAL_NUMBER",10979,null,null,"Sensor serial number",null,null,null,null,null,null,6903267,411,3,10979,"SENSOR_SERIAL_NO"]
[17,"SENSOR INFORMATION",4,"SENSOR","OPTODE_DOXY",null,null,"Sensor name",null,null,null,null,null,null,6903267,408,4,"OPTODE_DOXY","SENSOR"]
[17,"SENSOR INFORMATION",4,"SENSOR_MAKER","AANDERAA",null,null,"Sensor manufacturer",null,null,null,null,null,null,6903267,409,4,"AANDERAA","SENSOR_MAKER"]
[17,"SENSOR INFORMATION",4,"SENSOR_MODEL","AANDERAA_OPTODE_4330",null,null,"Sensor model",null,null,null,null,null,null,6903267,410,4,"AANDERAA_OPTODE_4330","SENSOR_MODEL"]
[17,"SENSOR INFORMATION",4,"SENSOR_SERIAL_NUMBER",2975,null,null,"Sensor serial number",null,null,null,null,null,null,6903267,411,4,2975,"SENSOR_SERIAL_NO"]
[17,null,null,null,null,null,null,null,null,null,null,null,null,null,6903267]
[17,"SENSOR MOUNT INFORMATION",1,"OPTODE: vertical pressure offset (in dbar)",null,null,"dbar","Distance OPTODE-CTD",null,null,null,null,null,null,6903267,2199,{"$f":"IF(ISBLANK(C66),\"\",C66)","v":1},{"$f":"IF(ISBLANK(E66),\"\",E66)","v":""},"OPTODE_VERTICAL_PRES_OFFSET"]
[17,"SENSOR MOUNT INFORMATION",1,"OPTODE: additional stick","yes",null,null,"Optode is mounted on an additional stick",null,null,null,null,null,null,6903267,2358,1,"yes","OPTODE_ADDITIONAL_STICK"]
[17,null,null,null,null,null,null,null,null,null,null,null,null,null,6903267]
[17,"SENSOR CALIBRATION INFORMATION",1,"OPTODE_CALIBRATION_CERTIFICATE","DON'T FORGET TO PROVIDE THE OPTODE CALIBRATION SHEET",null,null,"Name of the file which contains the optode calibration certificate",null,null,null,null,null,null,6903267,null,{"$f":"IF(ISBLANK(C69),\"\",C69)","v":1},{"$f":"IF(ISBLANK(J69),\"\",J69)","v":""}]
[17,null,null,null,null,null,null,null,null,null,null,null,null,null,6903267]
[17,"PARAMETER INFORMATION",1,"PARAMETER","PRES",null,null,"Parameter name",null,null,null,null,null,null,6903267,415,{"$f":"C71","v":1},"PRES","PARAMETER"]
[17,"PARAMETER INFORMATION",1,"PARAMETER_SENSOR","CTD_PRES",null,null,"Name of the sensor that measures the parameter",null,null,null,null,null,null,6903267,2100,{"$f":"C72","v":1},{"$f":"IF(ISBLANK(E72),\"\",E72)","v":"CTD_PRES"},"PARAMETER_SENSOR"]
[17,"PARAMETER INFORMATION",1,"PARAMETER_UNITS","decibar",null,null,"Units of accuracy and resolution of the parameter",null,null,null,null,null,null,6903267,2206,{"$f":"C73","v":1},{"$f":"IF(ISBLANK(E73),\"\",E73)","v":"decibar"},"PARAMETER_UNITS"]
[17,"PARAMETER INFORMATION",1,"PARAMETER_ACCURACY",2.4,null,null,"Accuracy of the parameter",null,null,null,null,null,null,6903267,2207,1,{"$f":"IF(ISBLANK(E74),\"\",E74)","v":2.4},"PARAMETER_ACCURACY"]
[17,"PARAMETER INFORMATION",1,"PARAMETER_RESOLUTION",0.1,null,null,"Resolution of the parameter",null,null,null,null,null,null,{"$f":"$E$20","v":6903267},2208,1,{"$f":"IF(ISBLANK(E75),\"\",E75)","v":0.1},"PARAMETER_RESOLUTION"]
[17,"PARAMETER INFORMATION",1,"PREDEPLOYMENT_CALIB_EQUATION",null,null,null,"Calibration equation for this parameter",null,null,null,null,null,null,6903267,416,1,"","PREDEPLOYMENT_CALIB_EQUATION"]
[17,"PARAMETER INFORMATION",1,"PREDEPLOYMENT_CALIB_COEFFICIENT",null,null,null,"Calibration coefficients for this equation",null,null,null,null,null,null,6903267,417,1,"","PREDEPLOYMENT_CALIB_COEFFICIENT"]
[17,"PARAMETER INFORMATION",1,"PREDEPLOYMENT_CALIB_COMMENT",null,null,null,"Comments applying to this parameter calibration",null,null,null,null,null,null,6903267,418,1,{"$f":"IF(ISBLANK(E78),\"\",E78)","v":""},"PREDEPLOYMENT_CALIB_COMMENT"]
[17,"PARAMETER INFORMATION",2,"PARAMETER","TEMP",null,null,"Parameter name",null,null,null,null,null,null,6903267,415,2,{"$f":"IF(ISBLANK(E79),\"\",E79)","v":"TEMP"},"PARAMETER"]
[17,"PARAMETER INFORMATION",2,"PARAMETER_SENSOR","CTD_TEMP",null,null,"Name of the sensor that measures the parameter",null,null,null,null,null,null,6903267,2100,2,"CTD_TEMP","PARAMETER_SENSOR"]
[17,"PARAMETER INFORMATION",2,"PARAMETER_UNITS","degC",null,null,"Units of accuracy and resolution of the parameter",null,null,null,null,null,null,{"$f":"$E$20","v":6903267},2206,2,"degC","PARAMETER_UNITS"]
[17,"PARAMETER INFORMATION",2,"PARAMETER_ACCURACY",2E-3,null,null,"Accuracy of the parameter",null,null,null,null,null,null,6903267,2207,2,{"$f":"IF(ISBLANK(E82),\"\",E82)","v":2E-3},"PARAMETER_ACCURACY"]
[17,"PARAMETER INFORMATION",2,"PARAMETER_RESOLUTION",1E-3,null,null,"Resolution of the parameter",null,null,null,null,null,null,6903267,2208,2,{"$f":"IF(ISBLANK(E83),\"\",E83)","v":1E-3},"PARAMETER_RESOLUTION"]
[17,"PARAMETER INFORMATION",2,"PREDEPLOYMENT_CALIB_EQUATION",null,null,null,"Calibration equation for this parameter",null,null,null,null,null,null,6903267,416,2,{"$f":"IF(ISBLANK(E84),\"\",E84)","v":""},"PREDEPLOYMENT_CALIB_EQUATION"]
[17,"PARAMETER INFORMATION",2,"PREDEPLOYMENT_CALIB_COEFFICIENT",null,null,null,"Calibration coefficients for this equation",null,null,null,null,null,null,6903267,417,2,"","PREDEPLOYMENT_CALIB_COEFFICIENT"]
[17,"PARAMETER INFORMATION",2,"PREDEPLOYMENT_CALIB_COMMENT",null,null,null,"Comments applying to this parameter calibration",null,null,null,null,null,null,6903267,418,2,{"$f":"IF(ISBLANK(E86),\"\",E86)","v":""},"PREDEPLOYMENT_CALIB_COMMENT"]
[17,"PARAMETER INFORMATION",3,"PARAMETER","PSAL",null,null,"Parameter name",null,null,null,null,null,null,6903267,415,3,"PSAL","PARAMETER"]
[17,"PARAMETER INFORMATION",3,"PARAMETER_SENSOR","CTD_CNDC",null,null,"Name of the sensor that measures the parameter",null,null,null,null,null,null,6903267,2100,3,{"$f":"IF(ISBLANK(E88),\"\",E88)","v":"CTD_CNDC"},"PARAMETER_SENSOR"]
[17,"PARAMETER INFORMATION",3,"PARAMETER_UNITS","psu",null,null,"Units of accuracy and resolution of the parameter",null,null,null,null,null,null,6903267,2206,3,"psu","PARAMETER_UNITS"]
[17,"PARAMETER INFORMATION",3,"PARAMETER_ACCURACY",5.0000000000000001E-3,null,null,"Accuracy of the parameter",null,null,null,null,null,null,6903267,2207,3,{"$f":"IF(ISBLANK(E90),\"\",E90)","v":5.0000000000000001E-3},"PARAMETER_ACCURACY"]
[17,"PARAMETER INFORMATION",3,"PARAMETER_RESOLUTION",1E-3,null,null,"Resolution of the parameter",null,null,null,null,null,null,6903267,2208,3,{"$f":"IF(ISBLANK(E91),\"\",E91)","v":1E-3},"PARAMETER_RESOLUTION"]
[17,"PARAMETER INFORMATION",3,"PREDEPLOYMENT_CALIB_EQUATION",null,null,null,"Calibration equation for this parameter",null,null,null,null,null,null,6903267,416,3,{"$f":"IF(ISBLANK(E92),\"\",E92)","v":""},"PREDEPLOYMENT_CALIB_EQUATION"]
[17,"PARAMETER INFORMATION",3,"PREDEPLOYMENT_CALIB_COEFFICIENT",null,null,null,"Calibration coefficients for this equation",null,null,null,null,null,null,6903267,417,3,"","PREDEPLOYMENT_CALIB_COEFFICIENT"]
[17,"PARAMETER INFORMATION",3,"PREDEPLOYMENT_CALIB_COMMENT",null,null,null,"Comments applying to this parameter calibration",null,null,null,null,null,null,6903267,418,{"$f":"C94","v":3},{"$f":"IF(ISBLANK(E94),\"\",E94)","v":""},"PREDEPLOYMENT_CALIB_COMMENT"]
[17,"PARAMETER INFORMATION",4,"PARAMETER","C1PHASE_DOXY",null,null,"Parameter name",null,null,null,null,null,null,6903267,415,4,"C1PHASE_DOXY","PARAMETER"]
[17,"PARAMETER INFORMATION",4,"PARAMETER_SENSOR","OPTODE_DOXY",null,null,"Name of the sensor that measures the parameter",null,null,null,null,null,null,6903267,2100,4,"OPTODE_DOXY","PARAMETER_SENSOR"]
[17,"PARAMETER INFORMATION",4,"PARAMETER_UNITS","degree",null,null,"Units of accuracy and resolution of the parameter",null,null,null,null,null,null,6903267,2206,4,"degree","PARAMETER_UNITS"]
[17,"PARAMETER INFORMATION",4,"PARAMETER_ACCURACY",null,null,null,"Accuracy of the parameter",null,null,null,null,null,null,6903267,2207,4,{"$f":"IF(ISBLANK(E98),\"\",E98)","v":""},"PARAMETER_ACCURACY"]
[17,"PARAMETER INFORMATION",4,"PARAMETER_RESOLUTION",2E-3,null,null,"Resolution of the parameter",null,null,null,null,null,null,6903267,2208,4,{"$f":"IF(ISBLANK(E99),\"\",E99)","v":2E-3},"PARAMETER_RESOLUTION"]
[17,"PARAMETER INFORMATION",4,"PREDEPLOYMENT_CALIB_EQUATION",null,null,null,"Calibration equation for this parameter",null,null,null,null,null,null,6903267,416,4,{"$f":"IF(ISBLANK(E100),\"\",E100)","v":""},"PREDEPLOYMENT_CALIB_EQUATION"]
[17,"PARAMETER INFORMATION",4,"PREDEPLOYMENT_CALIB_COEFFICIENT",null,null,null,"Calibration coefficients for this equation",null,null,null,null,null,null,6903267,417,4,"","PREDEPLOYMENT_CALIB_COEFFICIENT"]
[17,"PARAMETER INFORMATION",4,"PREDEPLOYMENT_CALIB_COMMENT",null,null,null,"Comments applying to this parameter calibration",null,null,null,null,null,null,6903267,418,4,"","PREDEPLOYMENT_CALIB_COMMENT"]
[17,"PARAMETER INFORMATION",5,"PARAMETER","C2PHASE_DOXY",null,null,"Parameter name",null,null,null,null,null,null,6903267,415,5,"C2PHASE_DOXY","PARAMETER"]
[17,"PARAMETER INFORMATION",5,"PARAMETER_SENSOR","OPTODE_DOXY",null,null,"Name of the sensor that measures the parameter",null,null,null,null,null,null,6903267,2100,5,"OPTODE_DOXY","PARAMETER_SENSOR"]
[17,"PARAMETER INFORMATION",5,"PARAMETER_UNITS","degree",null,null,"Units of accuracy and resolution of the parameter",null,null,null,null,null,null,6903267,2206,5,"degree","PARAMETER_UNITS"]
[17,"PARAMETER INFORMATION",5,"PARAMETER_ACCURACY",null,null,null,"Accuracy of the parameter",null,null,null,null,null,null,6903267,2207,5,{"$f":"IF(ISBLANK(E106),\"\",E106)","v":""},"PARAMETER_ACCURACY"]
[17,"PARAMETER INFORMATION",5,"PARAMETER_RESOLUTION",2E-3,null,null,"Resolution of the parameter",null,null,null,null,null,null,6903267,2208,5,{"$f":"IF(ISBLANK(E107),\"\",E107)","v":2E-3},"PARAMETER_RESOLUTION"]
[17,"PARAMETER INFORMATION",5,"PREDEPLOYMENT_CALIB_EQUATION",null,null,null,"Calibration equation for this parameter",null,null,null,null,null,null,6903267,416,5,{"$f":"IF(ISBLANK(E108),\"\",E108)","v":""},"PREDEPLOYMENT_CALIB_EQUATION"]
[17,"PARAMETER INFORMATION",5,"PREDEPLOYMENT_CALIB_COEFFICIENT",null,null,null,"Calibration coefficients for this equation",null,null,null,null,null,null,6903267,417,5,"","PREDEPLOYMENT_CALIB_COEFFICIENT"]
[17,"PARAMETER INFORMATION",5,"PREDEPLOYMENT_CALIB_COMMENT",null,null,null,"Comments applying to this parameter calibration",null,null,null,null,null,null,6903267,418,5,"","PREDEPLOYMENT_CALIB_COMMENT"]
[17,"PARAMETER INFORMATION",6,"PARAMETER","TEMP_DOXY",null,null,"Parameter name",null,null,null,null,null,null,6903267,415,6,"TEMP_DOXY","PARAMETER"]
[17,"PARAMETER INFORMATION",6,"PARAMETER_SENSOR","OPTODE_DOXY",null,null,"Name of the sensor that measures the parameter",null,null,null,null,null,null,6903267,2100,6,"OPTODE_DOXY","PARAMETER_SENSOR"]
[17,"PARAMETER INFORMATION",6,"PARAMETER_UNITS","degC",null,null,"Units of accuracy and resolution of the parameter",null,null,null,null,null,null,6903267,2206,6,"degC","PARAMETER_UNITS"]
[17,"PARAMETER INFORMATION",6,"PARAMETER_ACCURACY",null,null,null,"Accuracy of the parameter",null,null,null,null,null,null,6903267,2207,6,{"$f":"IF(ISBLANK(E114),\"\",E114)","v":""},"PARAMETER_ACCURACY"]
[17,"PARAMETER INFORMATION",6,"PARAMETER_RESOLUTION",1E-3,null,null,"Resolution of the parameter",null,null,null,null,null,null,6903267,2208,6,{"$f":"IF(ISBLANK(E115),\"\",E115)","v":1E-3},"PARAMETER_RESOLUTION"]
[17,"PARAMETER INFORMATION",6,"PREDEPLOYMENT_CALIB_EQUATION",null,null,null,"Calibration equation for this parameter",null,null,null,null,null,null,6903267,416,6,{"$f":"IF(ISBLANK(E116),\"\",E116)","v":""},"PREDEPLOYMENT_CALIB_EQUATION"]
[17,"PARAMETER INFORMATION",6,"PREDEPLOYMENT_CALIB_COEFFICIENT",null,null,null,"Calibration coefficients for this equation",null,null,null,null,null,null,6903267,417,6,"","PREDEPLOYMENT_CALIB_COEFFICIENT"]
[17,"PARAMETER INFORMATION",6,"PREDEPLOYMENT_CALIB_COMMENT",null,null,null,"Comments applying to this parameter calibration",null,null,null,null,null,null,6903267,418,6,"","PREDEPLOYMENT_CALIB_COMMENT"]
[17,"PARAMETER INFORMATION",7,"PARAMETER","DOXY",null,null,"Parameter name",null,null,null,null,null,null,6903267,415,7,"DOXY","PARAMETER"]
[17,"PARAMETER INFORMATION",7,"PARAMETER_SENSOR","OPTODE_DOXY",null,null,"Name of the sensor that measures the parameter",null,null,null,null,null,null,6903267,2100,7,"OPTODE_DOXY","PARAMETER_SENSOR"]
[17,"PARAMETER INFORMATION",7,"PARAMETER_UNITS","umol/kg",null,null,"Units of accuracy and resolution of the parameter",null,null,null,null,null,null,6903267,2206,7,"umol/kg","PARAMETER_UNITS"]
[17,"PARAMETER INFORMATION",7,"PARAMETER_ACCURACY","8 umol/kg or 10%",null,null,"Accuracy of the parameter",null,null,null,null,null,null,6903267,2207,7,{"$f":"IF(ISBLANK(E122),\"\",E122)","v":"8 umol/kg or 10%"},"PARAMETER_ACCURACY"]
[17,"PARAMETER INFORMATION",7,"PARAMETER_RESOLUTION","1 umol/kg",null,null,"Resolution of the parameter",null,null,null,null,null,null,6903267,2208,7,{"$f":"IF(ISBLANK(E123),\"\",E123)","v":"1 umol/kg"},"PARAMETER_RESOLUTION"]
[17,"PARAMETER INFORMATION",7,"PREDEPLOYMENT_CALIB_EQUATION",null,null,null,"Calibration equation for this parameter",null,null,null,null,null,null,6903267,416,7,{"$f":"IF(ISBLANK(E124),\"\",E124)","v":""},"PREDEPLOYMENT_CALIB_EQUATION"]
[17,"PARAMETER INFORMATION",7,"PREDEPLOYMENT_CALIB_COEFFICIENT",null,null,null,"Calibration coefficients for this equation",null,null,null,null,null,null,6903267,417,7,"","PREDEPLOYMENT_CALIB_COEFFICIENT"]
[17,"PARAMETER INFORMATION",7,"PREDEPLOYMENT_CALIB_COMMENT",null,null,null,"Comments applying to this parameter calibration",null,null,null,null,null,null,6903267,418,7,"","PREDEPLOYMENT_CALIB_COMMENT"]
[17,"PARAMETER INFORMATION",8,"PARAMETER","PPOX_DOXY",null,null,"Parameter name",null,null,null,null,null,null,6903267,415,8,"PPOX_DOXY","PARAMETER"]
[17,"PARAMETER INFORMATION",8,"PARAMETER_SENSOR","OPTODE_DOXY",null,null,"Name of the sensor that measures the parameter",null,null,null,null,null,null,6903267,2100,8,"OPTODE_DOXY","PARAMETER_SENSOR"]
[17,"PARAMETER INFORMATION",8,"PARAMETER_UNITS","mbar",null,null,"Units of accuracy and resolution of the parameter",null,null,null,null,null,null,6903267,2206,8,"mbar","PARAMETER_UNITS"]
[17,"PARAMETER INFORMATION",8,"PARAMETER_ACCURACY",null,null,null,"Accuracy of the parameter",null,null,null,null,null,null,6903267,2207,8,"","PARAMETER_ACCURACY"]
[17,"PARAMETER INFORMATION",8,"PARAMETER_RESOLUTION",null,null,null,"Resolution of the parameter",null,null,null,null,null,null,6903267,2208,8,"","PARAMETER_RESOLUTION"]
[17,"PARAMETER INFORMATION",8,"PREDEPLOYMENT_CALIB_EQUATION",null,null,null,"Calibration equation for this parameter",null,null,null,null,null,null,6903267,416,8,"","PREDEPLOYMENT_CALIB_EQUATION"]
[17,"PARAMETER INFORMATION",8,"PREDEPLOYMENT_CALIB_COEFFICIENT",null,null,null,"Calibration coefficients for this equation",null,null,null,null,null,null,6903267,417,8,"","PREDEPLOYMENT_CALIB_COEFFICIENT"]
[17,"PARAMETER INFORMATION",8,"PREDEPLOYMENT_CALIB_COMMENT",null,null,null,"Comments applying to this parameter calibration",null,null,null,null,null,null,6903267,418,8,"","PREDEPLOYMENT_CALIB_COMMENT"]
[17,null,null,null,null,null,null,null,null,null,null,null,null,null,6903267]
[17,"MISSION CONFIGURATION PARAMETERS",1,"PM0",255,255,"cycle","Number of cycles","Number of cycles performed by the float before turning itself into the Life Expiry mode (End Of Life mode). Set it to 255 if you don't plan to recover the float and you what it to cycle until exhaustion of its batteries.",null,null,null,null,null,6903267,2063,{"$f":"C136","v":1},{"$f":"IF(ISBLANK(E136),\"\",E136)","v":255},"CONFIG_MaxCycles_NUMBER"]
[17,"MISSION CONFIGURATION PARAMETERS",1,"PM1",2,10,"day","Cycle period","Total duration of a cycle (descent, submerged drift, ascent and transmission) (in days).",null,null,null,null,null,6903267,4,1,2,"PR_CYCLE_PERIOD"]
[17,"MISSION CONFIGURATION PARAMETERS",1,"PM2",1,2,"internal day number","Reference day","Float internal day number when the first ascending profile has to be made (in float day).",null,null,null,null,null,6903267,353,1,1,"PRCFG_Reference_day"]
[17,"MISSION CONFIGURATION PARAMETERS",1,"PM3",21,6,"hour","Estimated time at the surface","Estimated time the float must reach the surface (HH).",null,null,null,null,null,6903267,662,1,21,"PRCFG_End_time"]
[17,"MISSION CONFIGURATION PARAMETERS",1,"PM4",0,0,"minute","Delay before mission","Delay between the float start up and the beginning of the first descent (in minutes).",null,null,null,null,null,6903267,1353,1,0,"DELAY_BEFORE_MISSION"]
[17,"MISSION CONFIGURATION PARAMETERS",1,"PM5",0,0,"second","Descent sampling period","Sampling CTD period during the descent to parking depth. If set to 0, no descending profile is performed (except for the first cycle) (in seconds).",null,null,null,null,null,6903267,1354,1,0,"DESC_PROFILE_PERIOD"]
[17,"MISSION CONFIGURATION PARAMETERS",1,"PM6",12,12,"hour","Drift sampling period","Sampling CTD period during the drift phase at parking depth. If set to 0, no measurement is performed during the drift phase at parking depth (in hours).",null,null,null,null,null,6903267,7,1,{"$f":"IF(ISBLANK(E142),\"\",E142*60)","v":720},"PR_IMMERSION_DRIFT_PERIOD"]
[17,"MISSION CONFIGURATION PARAMETERS",1,"PM7",10,10,"second","Ascent sampling period","Sampling CTD period during the ascent to surface. If set to 0, no ascending profile is performed (in seconds).",null,null,null,null,null,6903267,1355,1,10,"ASC_PROFILE_PERIOD"]
[17,"MISSION CONFIGURATION PARAMETERS",1,"PM8",3000,1000,"dbar","Drift depth","Parking pressure (in dbar).",null,null,null,null,null,6903267,425,1,3000,"PARKING_PRESSURE"]
[17,"MISSION CONFIGURATION PARAMETERS",1,"PM9",3000,4000,"dbar","Profile depth","Profile pressure (in dbar).",null,null,null,null,null,6903267,426,1,3000,"DEEPEST_PRESSURE"]
[17,"MISSION CONFIGURATION PARAMETERS",1,"PM10",100,10,"dbar","Threshold surface/middle pressure","Isobar that divides shallow depths from intermediate depths for the purpose of data reduction (in dbar).",null,null,null,null,null,6903267,1356,{"$f":"C146","v":1},100,"INT_SURF_THRESHOLD"]
[17,"MISSION CONFIGURATION PARAMETERS",1,"PM11",700,200,"dbar","Threshold middle/bottom pressure","Isobar that divides intermediate depths from deep depths for the purpose of data reduction (in dbar).",null,null,null,null,null,6903267,1357,{"$f":"C147","v":1},700,"DEPTH_INT_THRESHOLD"]
[17,"MISSION CONFIGURATION PARAMETERS",1,"PM12",2,1,"dbar","Thickness of the surface slices","Thickness of the slices for shallow depths (algorithm of data reduction) (in dbar).",null,null,null,null,null,6903267,1358,1,2,"SURF_SLICE_THICKNESS"]
[17,"MISSION CONFIGURATION PARAMETERS",1,"PM13",10,10,"dbar","Thickness of the middle slices","Thickness of the slices for intermediate depths (algorithm of data reduction) (in dbar).",null,null,null,null,null,6903267,1359,1,10,"INT_SLICE_THICKNESS"]
[17,"MISSION CONFIGURATION PARAMETERS",1,"PM14",25,25,"dbar","Thickness of the bottom slices","Thickness of the slices for deeep depths (algorithm of data reduction) (in dbar).",null,null,null,null,null,6903267,1360,1,25,"DEPTH_SLICE_THICKNESS"]
[17,"MISSION CONFIGURATION PARAMETERS",1,"PM15",60,60,"minute","EOL Iridium period","Period of Iridium transmission when in End Of life mode.",null,null,null,null,null,6903267,924,1,60,"PRCFG_EOL_trans_period"]
[17,"MISSION CONFIGURATION PARAMETERS",1,"PM16",0,0,"minute","Delai before a second Iridium session","Waiting time after the Iridium session before starting a second Iridium session.",null,null,null,null,null,6903267,2263,1,0,"SECOND_IRIDIUM_SESSION_DELAY"]
[17,"MISSION CONFIGURATION PARAMETERS",1,"PM17",60,10,"minute","Delai before a new try when grounded at the surface","Delay between dive tries when grounded at the surface.",null,null,null,null,null,6903267,2256,1,60,"RETRY_DELAY_IF_STUCK_AT_SURFACE"]
[17,null,null,null,null,null,null,null,null,null,null,null,null,null,6903267,null,null,""]
[17,"MISSION TECHNICAL PARAMETERS",1,"PT0",1100,1100,"csec","Max eV activation on Surface","Durée maxi d'activation EV en surface (utilisée pour PT8<P< PT7).",null,null,null,null,null,6903267,926,{"$f":"C155","v":1},1100,"PRCFG_Surf_valve_max_duration"]
[17,"MISSION TECHNICAL PARAMETERS",1,"PT1",17,17,"cm3","Max volume eV during descent and repositionning","Volume transféré par l'EV maxi autorisé en profondeur (pendant les descentes et les repositionnements).",null,null,null,null,null,6903267,927,1,17,"PRCFG_Depth_valve_max_volume"]
[17,"MISSION TECHNICAL PARAMETERS",1,"PT2",450,450,"csec","Max duration pump during repositionning","Durée maxi d'activation de la pompe en profondeur durant les repositionnements.",null,null,null,null,null,6903267,928,1,450,"PRCFG_Depth_pump_max_duration"]
[17,"MISSION TECHNICAL PARAMETERS",1,"PT3",1120,1120,"csec","Duration pump during ascent","Durée maxi d'activation de la pompe en remontée.",null,null,null,null,null,6903267,929,1,1120,"PRCFG_Asc_pump_max_duration"]
[17,"MISSION TECHNICAL PARAMETERS",1,"PT4",28000,24000,"csec","Duration Pump during for surfacing","Durée nominale d'activation de la pompe en émergence.",null,null,null,null,null,6903267,930,1,28000,"PRCFG_Surf_pump_duration"]
[17,"MISSION TECHNICAL PARAMETERS",1,"PT5",50,50,"dbar","Pressure Delta for positionning (+/-)","Tolérance sur l'atteinte de la pression de consigne (+/-).",null,null,null,null,null,6903267,931,1,50,"PRCFG_Gap_order_go_delta_pres"]
[17,"MISSION TECHNICAL PARAMETERS",1,"PT6",4220,4220,"dbar","Max pressure before emergency ascent","Pression maxi à ne pas dépasser.",null,null,null,null,null,6903267,932,1,4220,"PRCFG_Max_pressure"]
[17,"MISSION TECHNICAL PARAMETERS",1,"PT7",2,2,"dbar","1st threshold for buoyancy reduction","Pression de début de réduction de la durée d'activation EV en surface.",null,null,null,null,null,6903267,933,1,2,"PRCFG_Surf_valve_start_pressure"]
[17,"MISSION TECHNICAL PARAMETERS",1,"PT8",12,7,"dbar","2nd threshold for buoyancy reduction","Critère de pression de début de plongée.",null,null,null,null,null,6903267,934,1,12,"PRCFG_Descent_start_pressure"]
[17,"MISSION TECHNICAL PARAMETERS",1,"PT9",2,2,null,"Repositionning threshold","Nombre de positions hors tolérance autorisé en dérive avant repositionnement.",null,null,null,null,null,6903267,935,1,2,"PRCFG_Gap_order_delta_position"]
[17,"MISSION TECHNICAL PARAMETERS",1,"PT10",0,0,null,"Grounding mode","Mode de gestion de l'échouage en descente à la pression de dérive (0 = décalage, 1 = attente).",null,null,null,null,null,6903267,936,1,0,"PRCFG_Grounded_mode"]
[17,"MISSION TECHNICAL PARAMETERS",1,"PT11",47,47,"cm3","Max volume before detecting grounding","Critère d'échouage: volume cumulé (volume minimal transféré sans déplacement avant de déclarer l’échouage).",null,null,null,null,null,6903267,937,1,47,"PRCFG_Grounded_volume"]
[17,"MISSION TECHNICAL PARAMETERS",1,"PT12",200,200,"dbar","Grounding pressure","Pression en dessous de laquelle le flotteur reste posé en attente profil remontée (quand PT10 = 0, la pression de dérive est diminuée de PT13 uniquement si elle est supérieure à PT12).",null,null,null,null,null,6903267,938,1,200,"PRCFG_Grounded_waiting_pres"]
[17,"MISSION TECHNICAL PARAMETERS",1,"PT13",100,100,"dbar","Grounding switch pressure","Diminution de la pression visée en cas d'échouage (quand PT10 = 0, la pression de dérive est diminuée de PT13 uniquement si elle est supérieure à PT12).",null,null,null,null,null,6903267,939,1,100,"PRCFG_Grounded_reduction_pres"]
[17,"MISSION TECHNICAL PARAMETERS",1,"PT14",50,50,"dbar","Pressure delta during drift (+/-)","Tolérance sur maintien de la pression de consigne (+/-).",null,null,null,null,null,6903267,940,1,50,"PRCFG_Gap_order_keep_delta_pres"]
[17,"MISSION TECHNICAL PARAMETERS",1,"PT 16",1,1,null,"Alternate profile period","Période d’alternance de la pression de profil (si = 1, alors pas d’alternance).",null,null,null,null,null,6903267,942,{"$f":"C170","v":1},1,"PRCFG_Alternate_profile_period"]
[17,"MISSION TECHNICAL PARAMETERS",1,"PT 17",4000,4000,"dbar","Alternate profile pressure","Profondeur de profil alterné.",null,null,null,null,null,6903267,943,{"$f":"C171","v":1},4000,"PRCFG_Alternate_profile_depth"]
[17,"MISSION TECHNICAL PARAMETERS",1,"PT18",27,30," mm/s","Average descent speed","Vitesse moyenne de descente.",null,null,null,null,null,6903267,944,1,27,"PRCFG_Descent_speed"]
[17,"MISSION TECHNICAL PARAMETERS",1,"PT 19",0,0,"dbar","Pressure increment","Incrément de profondeur de consigne à chaque cycle.",null,null,null,null,null,6903267,945,1,0,"PRCFG_Imm_increment_pressure"]
[17,"MISSION TECHNICAL PARAMETERS",1,"PT20",5,5,"dbar","PCutoff CTD pump sensor","Pression d’arrêt de la pompe de la CTD.",null,null,null,null,null,6903267,1910,1,5,"CTD_CUT_OFF_PRESSURE"]
[17,"MISSION TECHNICAL PARAMETERS",1,"PT21",1,1,null,"Oxygen measurement","Activation de l'optode (0 non, 1 oui).",null,null,null,null,null,6903267,2257,1,1,"OPTODE_ACTIVE"]
[17,"MISSION TECHNICAL PARAMETERS",1,"PT22",10,10,"dbar","Ascent End Pressure","Pression de fin de remontée.",null,null,null,null,null,6903267,2258,1,10,"ASCENT_END_THRESHOLD"]
[17,"MISSION TECHNICAL PARAMETERS",1,"PT23",90,90," mm/s","Average ascent speed","Vitesse moyenne de remontée.",null,null,null,null,null,6903267,1604,1,90,"AverageAscentSpeed"]
[17,"MISSION TECHNICAL PARAMETERS",1,"PT24",2,2,"minute","Float ascent speed control period","Période de mesure de la pression en remontée (période du contrôle de la vitesse de remontée).",null,null,null,null,null,6903267,2154,1,2,"VECTOR_ASCEND_SAMPLING_PERIOD"]
[17,"MISSION TECHNICAL PARAMETERS",1,"PT25",10,10,"dbar","Pressure ascent speed control pressure","Ecart de pression pour stabilisation en remontée (tous les PT24, si |DP|  < PT25 => action de pompe).",null,null,null,null,null,6903267,2167,1,10,"ASCENT_STABILIZATION_PRES"]
[17,"MISSION TECHNICAL PARAMETERS",1,"PT26",5,5,"minute","Float descent speed control period","Période de mesure de la pression en descente (période du contrôle de la vitesse de descente).",null,null,null,null,null,6903267,2260,1,5,"VECTOR_DESCEND_SAMPLING_PERIOD"]
[17,"MISSION TECHNICAL PARAMETERS",1,"PT27",4,4,"dbar","Pressure descent speed control pressure","Ecart de pression pour stabilisation en descente (tous les PT26, si |DP| < PT27 => action d’EV).",null,null,null,null,null,6903267,2261,1,4,"DESCENT_STABILIZATION_PRES"]
[17,"MISSION TECHNICAL PARAMETERS",1,"PT28",24,24,null,"GPS retries","Nombre de tentatives GPS par phase d'essai avant rallumage GPS (si la tentative d’acquisition de la position GPS échoue plus de PT28 fois on fait un OFF/ON du GPS avant de recommencer les tentatives d’acquisition).",null,null,null,null,null,6903267,2262,1,24,"MAX_GPS_ATTEMPTS_BEFORE_RESET"]
[17,"MISSION TECHNICAL PARAMETERS",1,"PT29",1,1,null,"Hydraulic message transmission (0 : no, 1 ; yes)","Transmission message hydraulique (0 non, 1 oui).",null,null,null,null,null,6903267,2259,1,1,"HYDRAULIC_DATA_TRANSMISSION"]
[17,"MISSION TECHNICAL PARAMETERS",1,"PT30",30,30,"second","Sampling period during \"In Air\" acquisition phase","Période des acquisitions en surface.",null,null,null,null,null,{"$f":"$E$20","v":6903267},2343,1,{"$f":"IF(ISBLANK(E184),\"\",E184)","v":30},"IN_AIR_MEAS_SAMPLING_PERIOD"]
[17,"MISSION TECHNICAL PARAMETERS",1,"PT31",5,5,"minute","Duration of the \"In Air\" acquisition phase","Durée de la phase d'acquisition en surface.",null,null,null,null,null,6903267,2344,1,5,"IN_AIR_MEAS_PHASE_DURATION"]
[17,"MISSION TECHNICAL PARAMETERS",1,"PT32",0,30000,"csec","Pump activation duration before \"In Air\" acquisition phase","Pompage forfaitaire avant acquisition en surface.",null,null,null,null,null,6903267,2345,1,0,"IN_AIR_MEAS_SURF_PUMP_DURATION"]
[17,"MISSION TECHNICAL PARAMETERS",1,"PT33",1,0,null,"Periodicity of \"In Air\" acquisition phase (0=no acq., 1=acq. on each cycle, x=acq. on 1/x cycle)","Périodicité acquisition en surface (0= aucune, 1= à chaque cycle, n = tous les n cycles).",null,null,null,null,null,6903267,2342,1,1,"IN_AIR_MEAS_PERIODICITY"]
[17,"MISSION TECHNICAL PARAMETERS",1,"PT34",1.458,0.125,null,null,"Coefficient de calibrage pression Coeff A (coefficient de calibration utilisé pour convertir la pression interne).",null,null,null,null,null,6903267,948,1,1.458,"PRCFG_Pressure_coefficient_A"]
[17,"MISSION TECHNICAL PARAMETERS",1,"PT35",-225,0,null,null,"Coefficient de calibrage pression Coeff B (coefficient de calibration utilisé pour convertir la pression interne).",null,null,null,null,null,6903267,949,{"$f":"C189","v":1},{"$f":"IF(ISBLANK(E189),\"\",E189)","v":-225},"PRCFG_Pressure_coefficient_B"]
[17]
[17,"ICE DETECTION PARAMETERS",1,"PG0",0,10,"days","Nb of day without surface emergence if Ice detected",null,null,null,null,null,null,{"$f":"$E$20","v":6903267},2360,{"$f":"C191","v":1},{"$f":"IF(ISBLANK(E191),\"\",E191)","v":0},"ICE_NO_SURFACE_DELAY"]
[17,"ICE DETECTION PARAMETERS",1,"PG1",null,90,"days","Nb of day before surface emergence even with ice detected",null,null,null,null,null,null,6903267,2361,1,"","ICE_DISABLE_ALGO_DELAY"]
[17,"ICE DETECTION PARAMETERS",1,"PG2",null,3,"detections","Number of detections to confirm ice at surface",null,null,null,null,null,null,6903267,2362,1,"","ICE_ISA_NB_TEMP_COMP_TRUE"]
[17,"ICE DETECTION PARAMETERS",1,"PG3",null,50,"decibars","Start pressure detection",null,null,null,null,null,null,6903267,2363,1,"","ICE_ISA_TEMP_COMP_START_PRES"]
[17,"ICE DETECTION PARAMETERS",1,"PG4",null,20,"decibars","Stop pressure detection",null,null,null,null,null,null,6903267,2364,1,"","ICE_ISA_TEMP_COMP_STOP_PRES"]
[17,"ICE DETECTION PARAMETERS",1,"PG5",null,-1790,"1/1000 degC","Temperature threshold",null,null,null,null,null,null,6903267,2365,1,"","ICE_ISA_TEMP_THRESHOLD"]
[17,"ICE DETECTION PARAMETERS",1,"PG6",null,150,"decibars","Slowdown pressure threshold",null,null,null,null,null,null,6903267,2366,1,"","ICE_ISA_SLOWDOWN_START_PRES"]
[17,"ICE DETECTION PARAMETERS",1,"PG7",null,2,"minute","Pressure acquisition period during ascent (slow speed), once P < IC6",null,null,null,null,null,null,6903267,2367,1,"","ICE_ISA_PRES_ACQUISITION_PERIOD"]
[17,"ICE DETECTION PARAMETERS",1,"PG8",null,4,"decibars","Pressure delta min before pump action",null,null,null,null,null,null,6903267,2368,1,"","ICE_ISA_ASCENT_STAB_PRES"]
[17,"ICE DETECTION PARAMETERS",1,"PG9",null,500,"centisec","Pump action duration",null,null,null,null,null,null,6903267,2369,1,"","ICE_ISA_PUMP_DURATION"]
[17,"ICE DETECTION PARAMETERS",1,"PG10",null,5,"minutes","GPS timeout",null,null,null,null,null,null,6903267,2370,1,"","ICE_GPS_TIMEOUT"]
[17,"ICE DETECTION PARAMETERS",1,"PG11",null,10,"minutes","1st Iridium lock timetout",null,null,null,null,null,null,6903267,2371,1,"","ICE_FIRST_IRIDIUM_LOCK_TIMEOUT"]
[17,"ICE DETECTION PARAMETERS",1,"PG12",null,30,"minutes","Delay before ascent blocking detection",null,null,null,null,null,null,6903267,2372,1,"","ICE_NO_VERTICAL_MOTION_TIMEOUT"]
[17,"ICE DETECTION PARAMETERS",1,"PG13",null,20,"decibars","Pressure variation for speed inversion",null,null,null,null,null,null,6903267,2373,1,"","ICE_DELTA_PRES_BUOY_INV_END"]
[17,"ICE DETECTION PARAMETERS",1,"PG14",null,9,"cm3","Valve action volume",null,null,null,null,null,null,6903267,2374,1,"","ICE_VOLUME_EV_ACTION_BUOY_INV"]
[17,"ICE DETECTION PARAMETERS",1,"PG15",null,900,"cm3","Max valve volume to detect grounding on descent",null,null,null,null,null,null,6903267,2375,1,"","ICE_VOLUME_GROUNDING_BUOY_INV"]
[17,null,null,null,null,null,null,null,null,null,null,null,null,null,6903267,null,null,""]
[17,"ACCEPTANCE REMARKS",1,"ACCEPT_VISUAL_CHECK",null,null,null,"Comment after visual inspection of the float",null,null,null,null,null,null,{"$f":"$E$20","v":6903267},2103,{"$f":"C208","v":1},{"$f":"IF(ISBLANK(E208),\"\",E208)","v":""},"ACPT_FLOAT_VISUAL_CHECK_CMT"]
[17,"ACCEPTANCE REMARKS",1,"ACCEPT_BALLAST_CHECK",null,null,null,"Comment after visual inspection of the ballast",null,null,null,null,null,null,6903267,2104,1,"","ACPT_BALLAST_VISUAL_CHECK_CMT"]
[17,"ACCEPTANCE REMARKS",1,"ACCEPT_FIRMWARE_VERSION",null,null,null,"Float firmware version",null,null,null,null,null,null,6903267,2105,1,"","ACPT_FIRMWARE_VERSION"]
[17,"ACCEPTANCE REMARKS",1,"ACCEPT_CLOCK_SET_BEFORE",null,null,null,"Float clock set (yes/no)",null,null,null,null,null,null,6903267,2107,{"$f":"C211","v":1},"","ACPT_START_CLOCK_SET"]
[17,"ACCEPTANCE REMARKS",1,"ACCEPT_CLOCK_SET_DATE_BEFORE",null,null,null,"Float clock set date (dd/mm/yyyy hh:mm) ('!TI')",null,null,null,null,null,null,6903267,2280,1,"","ACPT_START_CLOCK_SET_VALUE"]
[17,"ACCEPTANCE REMARKS",1,"ACCEPT_BATTERY_VOLTAGE_BEFORE",null,null,null,"Battery voltage (V)",null,null,null,null,null,null,6903267,2108,1,"","ACPT_START_BATTERY_VOLTAGE"]
[17,"ACCEPTANCE REMARKS",1,"ACCEPT_INTERNAL_VACUUM_FULL_BEFORE",null,null,null,"Internal vacuum with full bladder (mbar)",null,null,null,null,null,null,6903267,2109,1,"","ACPT_START_INT_VAC_FULL_BLADDER"]
[17,"ACCEPTANCE REMARKS",1,"ACCEPT_PRESSURE_BEFORE",null,null,null,"Pressure (cbar)  ('?S')",null,null,null,null,null,null,6903267,2281,1,"","ACPT_PRES_VAL_BEFORE"]
[17,"ACCEPTANCE REMARKS",1,"ACCEPT_TEMPERATURE_BEFORE",null,null,null,"Temperature (°C)  ('?S')",null,null,null,null,null,null,6903267,2282,1,"","ACPT_TEMP_VAL_BEFORE"]
[17,"ACCEPTANCE REMARKS",1,"ACCEPT_SALINITY_BEFORE",null,null,null,"Salinity (mPSU)  ('?S')",null,null,null,null,null,null,6903267,2283,1,"","ACPT_PSAL_VAL_BEFORE"]
[17,"ACCEPTANCE REMARKS",1,"ACCEPT_FIRMWARE_CHECKSUM",null,null,null,"Firmware checksum ('!C')",null,null,null,null,null,null,6903267,2106,{"$f":"C218","v":1},"","ACPT_FIRMWARE_CHECKSUM"]
[17,"ACCEPTANCE REMARKS",1,"ACCEPT_SPY_MODE_ON",null,null,null,"Spy mode activated ('!SP ON')",null,null,null,null,null,null,6903267,2113,1,"","ACPT_SPY_MODE_ON"]
[17,"ACCEPTANCE REMARKS",1,"ACCEPT_SHOW_MODE_OFF",null,null,null,"Show mode disabled ('!SH OFF')",null,null,null,null,null,null,6903267,2114,1,"","ACPT_SHOW_MODE_OFF"]
[17,"ACCEPTANCE REMARKS",1,"ACCEPT_ARM_ON",null,null,null,"Mission armed ('!AR ON')",null,null,null,null,null,null,6903267,2115,1,"","ACPT_MISSION_ARMED"]
[17,"ACCEPTANCE DEPLOYMENT",1,"ACCEPT_MAGNET_REMOVAL_TIME",null,null,null,"Magnet removal  time (dd/mm/yyyy hh:mm)",null,null,null,null,null,null,6903267,2116,1,null,"ACPT_STARTUP_DATE"]
[17,"ACCEPTANCE DEPLOYMENT",1,"ACCEPT_FLOAT_INTERNAL_CHECK",null,null,null,"Comment on float internal checks (valve and pump actions, argos transmission check) ",null,null,null,null,null,null,6903267,2284,{"$f":"C223","v":1},{"$f":"IF(ISBLANK(E223),\"\",E223)","v":""},"ACPT_FLOAT_INTERNAL_CHECK_CMT"]
[17,"ACCEPTANCE DEPLOYMENT",1,"ACCEPT_BUOYANCY_BEFORE",null,null,null,"Buoyancy description at deployment",null,null,null,null,null,null,6903267,2285,1,"","ACPT_BUOYANCY_DESCRIPTION_BEFORE"]
[17,"ACCEPTANCE RECOVERY",1,"ACCEPT_BUOYANCY_AFTER",null,null,null,"Buoyancy description at recovery",null,null,null,null,null,null,6903267,2286,1,"","ACPT_BUOYANCY_DESCRIPTION_AFTER"]
[17,"ACCEPTANCE RECOVERY",1,"ACCEPT_CLOCK_DRIFT",null,null,null,"Clock drift",null,null,null,null,null,null,6903267,2124,1,"","ACPT_CLOCK_DRIFT"]
[17,"ACCEPTANCE RECOVERY",1,"ACCEPT_BATTERY_VOLTAGE_AFTER",null,null,null,"Battery voltage (V)",null,null,null,null,null,null,6903267,2127,1,"","ACPT_END_BATTERY_VOLTAGE"]
[17,"ACCEPTANCE RECOVERY",1,"ACCEPT_INTERNAL_VACUUM_AFTER",null,null,null,"Internal vacuum at recovery (mbar)",null,null,null,null,null,null,6903267,2128,1,"","ACPT_END_INT_VAC"]
[17,"ACCEPTANCE RECOVERY",1,"ACCEPT_INTERNAL_VACUUM_COMMENT",null,null,null,"Comment on vacuum measurement after recovery",null,null,null,null,null,null,{"$f":"$E$20","v":6903267},2130,{"$f":"C229","v":1},{"$f":"IF(ISBLANK(E229),\"\",E229)","v":""},"ACPT_END_INT_VAC_CMT"]
[17,"ACCEPTANCE RECOVERY",1,"ACCEPT_PRESSURE_AFTER",null,null,null,"Pressure (cbar)  ('?S')",null,null,null,null,null,null,6903267,2287,1,"","ACPT_PRES_VAL_AFTER"]
[17,"ACCEPTANCE RECOVERY",1,"ACCEPT_TEMPERATURE_AFTER",null,null,null,"Temperature (°C)  ('?S')",null,null,null,null,null,null,6903267,2288,1,"","ACPT_TEMP_VAL_AFTER"]
[17,"ACCEPTANCE RECOVERY",1,"ACCEPT_SALINITY_AFTER",null,null,null,"Salinity (mPSU)  ('?S')",null,null,null,null,null,null,6903267,2289,1,"","ACPT_PSAL_VAL_AFTER"]
[17,"ACCEPTANCE RECOVERY",1,"ACCEPT_COMMENT",null,null,null,"General comment on acceptance checks",null,null,null,null,null,null,6903267,2131,{"$f":"C233","v":1},"","ACPT_CMT"]
[17,null,null,null,null,null,null,null,null,null,null,null,null,null,6903267]
[17,"MISSION PROGRAMMING REMARKS",1,"PRE_DEPLOY_VISUAL_CHECK",null,null,null,"Comment after visual inspection of the float",null,null,null,null,null,null,6903267,2132,1,"","P_DPLY_FLOAT_VISUAL_CHECK_CMT"]
[17,"MISSION PROGRAMMING REMARKS",1,"PRE_DEPLOY_BALLAST_CHECK",null,null,null,"Comment after visual inspection of the ballast",null,null,null,null,null,null,6903267,2133,{"$f":"C236","v":1},"","P_DPLY_BALLAST_VISUAL_CHECK_CMT"]
[17,"MISSION PROGRAMMING REMARKS",1,"PRE_DEPLOY_FIRMWARE_VERSION",null,null,null,"Float firmware version ('?VL')",null,null,null,null,null,null,6903267,2290,{"$f":"C237","v":1},"","P_DPLY_FIRMWARE_VERSION"]
[17,"MISSION PROGRAMMING REMARKS",1,"PRE_DEPLOY_CLOCK_SET","OK",null,null,"Float clock set",null,null,null,null,null,null,6903267,2134,{"$f":"C238","v":1},"OK","P_DPLY_CLOCK_SET"]
[17,"MISSION PROGRAMMING REMARKS",1,"PRE_DEPLOY_CLOCK_SET_DATE",null,null,null,"Float clock set date (dd/mm/yyyy hh:mm) ('!TI')",null,null,null,null,null,null,6903267,2291,1,"","P_DPLY_CLOCK_SET_VALUE"]
[17,"MISSION PROGRAMMING REMARKS",1,"PRE_DEPLOY_BATTERY_VOLTAGE",null,null,null,"Battery voltage (V)",null,null,null,null,null,null,6903267,2135,1,"","P_DPLY_BATTERY_VOLTAGE"]
[17,"MISSION PROGRAMMING REMARKS",1,"PRE_DEPLOY_INTERNAL_VACUUM_FULL",null,null,null,"Internal vacuum with full bladder (mbar)",null,null,null,null,null,null,6903267,2136,1,{"$f":"IF(ISBLANK(E241),\"\",E241)","v":""},"P_DPLY_INT_VAC_FULL_BLADDER"]
[17,"MISSION PROGRAMMING REMARKS",1,"PRE_DEPLOY_INTERNAL_VACUUM_COMMENT",null,null,null,"Comment on vacuum measurements",null,null,null,null,null,null,6903267,2137,{"$f":"C242","v":1},{"$f":"IF(ISBLANK(E242),\"\",E242)","v":""},"P_DPLY_INT_VAC_CMT"]
[17,"MISSION PROGRAMMING REMARKS",1,"PRE_DEPLOY_PRESSURE",null,null,null,"Pressure (cbar)  ('?S')",null,null,null,null,null,null,6903267,2292,1,"","P_DPLY_PRES_VAL"]
[17,"MISSION PROGRAMMING REMARKS",1,"PRE_DEPLOY_TEMPERATURE",null,null,null,"Temperature (°C)  ('?S')",null,null,null,null,null,null,6903267,2293,1,"","P_DPLY_TEMP_VAL"]
[17,"MISSION PROGRAMMING REMARKS",1,"PRE_DEPLOY_SALINITY",null,null,null,"Salinity (mPSU)  ('?S')",null,null,null,null,null,null,6903267,2294,1,"","P_DPLY_PSAL_VAL"]
[17,"MISSION PROGRAMMING REMARKS",1,"PRE_DEPLOY_FIRMWARE_CHECKSUM",null,null,null,"Firmware checksum",null,null,null,null,null,null,6903267,null,{"$f":"C246","v":1},{"$f":"IF(ISBLANK(E246),\"\",E246)","v":""}]
[17,"MISSION PROGRAMMING REMARKS",1,"PRE_DEPLOY_SPY_MODE_ON","OK",null,null,"Spy mode activated ('!SP ON')",null,null,null,null,null,null,6903267,2141,1,"OK","P_DPLY_SPY_MODE_ON"]
[17,"MISSION PROGRAMMING REMARKS",1,"PRE_DEPLOY_SHOW_MODE_OFF","OK",null,null,"Show mode disabled ('!SH OFF')",null,null,null,null,null,null,6903267,2142,1,"OK","P_DPLY_SHOW_MODE_OFF"]
[17,"MISSION PROGRAMMING REMARKS",1,"PRE_DEPLOY_ARM_ON","OK",null,null,"Mission armed ('!AR ON')",null,null,null,null,null,null,6903267,2143,1,"OK","P_DPLY_MISSION_ARMED"]
[17,"MISSION PROGRAMMING REMARKS",1,"PRE_DEPLOY_COMMENT",null,null,null,"General comment on mission programming",null,null,null,null,null,null,6903267,2144,1,"","P_DPLY_CMT"]
[17,null,null,null,null,null,null,null,null,null,null,null,null,null,6903267,384,1,{"$f":"MID(R21,9,6)","v":"657208"},"PTT"]
[17,null,null,null,null,null,null,null,null,null,null,null,null,null,6903267,3,1,16,"PR_CRC_TYPE"]
[17,null,null,null,null,null,null,null,null,null,null,null,null,null,6903267,11,1,{"$f":"IF(ISBLANK(R36),\"\",IF(R138=\"\",\"\",ROUNDDOWN(R36+R138,0)))","v":"2019-07-20"},"PR_REFERENCE_DATETIME",null,null,"Arvor : launch + ref + 00:00:00, PRV CTS3 launch + ref + HH, CTS3.1 launch + ref + 00:00"]
[17,null,null,null,null,null,null,null,null,null,null,null,null,null,6903267,12,1,{"$f":"IF(R253=\"\",\"\",(ROUNDDOWN(R253,0)-18264))","v":25402},"PR_REFERENCE_INTERNAL_DATE",null,null,"juste le jour de PR_REFERENCE_DATETIME mais en jour julien"]
[17,null,null,null,null,null,null,null,null,null,null,null,null,null,6903267,14,1,null,"PR_RECORDER_CODE"]
[17,null,null,null,null,null,null,null,null,null,null,null,null,null,6903267,16,1,2,"PR_CONDUCTIVITY_ACCURACY"]
[17,null,null,null,null,null,null,null,null,null,null,null,null,null,6903267,376,1,"IF","DATA_CENTRE"]
[17,null,null,null,null,null,null,null,null,null,null,null,null,null,6903267,377,1,"GPS","POSITIONING_SYSTEM"]
[17,null,null,null,null,null,null,null,null,null,null,null,null,null,6903267,377,2,"IRIDIUM","POSITIONING_SYSTEM"]
[17,null,null,null,null,null,null,null,null,null,null,null,null,null,6903267,385,1,"IRIDIUM","TRANS_SYSTEM"]
[17,null,null,null,null,null,null,null,null,null,null,null,null,null,6903267,393,1,"B","DIRECTION"]
[17,null,null,null,null,null,null,null,null,null,null,null,null,null,6903267,396,1,1,"LAUNCH_QC"]
[17,null,null,null,null,null,null,null,null,null,null,null,null,null,6903267,398,1,1,"START_DATE_QC"]
[17,null,null,null,null,null,null,null,null,null,null,null,null,null,6903267,419,1,1,"REPETITION_RATE"]
[17,null,null,null,null,null,null,null,null,null,null,null,null,null,6903267,420,1,{"$f":"IF(ISBLANK(R137),\"\",R137*24)","v":48},"CYCLE_TIME",null,null,"PR_CYCLE_PERIOD en heures"]
[17,null,null,null,null,null,null,null,null,null,null,null,null,null,6903267,17,1,{"$f":"IF(ISBLANK(R144),\"\",R144)","v":3000},"PR_PARKING_DEPTH",null,null,"idem PARKING_PRESSURE"]
[17,null,null,null,null,null,null,null,null,null,null,null,null,null,6903267,18,1,{"$f":"IF(ISBLANK(R145),\"\",R145)","v":3000},"PR_PROFILE_DEPTH",null,null,"idem DEEPEST_PRESSURE"]
[17,null,null,null,null,null,null,null,null,null,null,null,null,null,6903267,482,1,"2019-07-25T17:00:00","METADATA_DATE_UPDATE",null,null,"date courante sans les MM:SS + 5 heures (mis à jour lors de la validation ou sauvegarde)"]
[17,null,null,null,null,null,null,null,null,null,null,null,null,null,6903267,573,1,1.2,"HANDBOOK_VERSION"]
[17,null,null,null,null,null,null,null,null,null,null,null,null,null,6903267,397,1,{"$f":"IF(ISBLANK(R34),\"\",IF(R140=\"\",\"\",(R34+(R140/1440))))","v":"2019-07-19T21:10:00"},"START_DATE",null,null," = R35 + PM4/1440"]
[17,null,null,null,null,null,null,null,null,null,null,null,null,null,6903267,1361,1,5,"PRES_SBE_PUMP_SWITCH_OFF"]
[17,null,null,null,null,null,null,null,null,null,null,null,null,null,6903267,2053,1,{"$f":"IF(ISBLANK(R271),\"\",R271+0.5)","v":5.5},"CTDPumpStopPressurePlusThreshold",null,null,"PRES_SBE_PUMP_SWITCH_OFF + 0.5"]
[17,null,null,null,null,null,null,null,null,null,null,null,null,null,6903267,1,1,"PROVOR","PR_TYPE"]
[17,null,null,null,null,null,null,null,null,null,null,null,null,null,6903267,1362,1,null,"AANDERAA_OPTODE_COEF_C0"]
[17,null,null,null,null,null,null,null,null,null,null,null,null,null,{"$f":"$E$20","v":6903267},1363,1,null,"AANDERAA_OPTODE_COEF_C1"]
[17,null,null,null,null,null,null,null,null,null,null,null,null,null,6903267,1364,1,null,"AANDERAA_OPTODE_COEF_C2"]
[17,null,null,null,null,null,null,null,null,null,null,null,null,null,6903267,1365,1,null,"AANDERAA_OPTODE_COEF_C3"]
[17,null,null,null,null,null,null,null,null,null,null,null,null,null,6903267,1366,1,null,"AANDERAA_OPTODE_COEF_C4"]
[17,null,null,null,null,null,null,null,null,null,null,null,null,null,6903267,1367,1,null,"AANDERAA_OPTODE_COEF_C5"]
[17,null,null,null,null,null,null,null,null,null,null,null,null,null,6903267,1368,1,null,"AANDERAA_OPTODE_COEF_C6"]
[17,null,null,null,null,null,null,null,null,null,null,null,null,null,6903267,1647,1,0,"AANDERAA_OPTODE_PHASE_COEF_0"]
[17,null,null,null,null,null,null,null,null,null,null,null,null,null,6903267,1648,1,1,"AANDERAA_OPTODE_PHASE_COEF_1"]
[17,null,null,null,null,null,null,null,null,null,null,null,null,null,6903267,1649,1,0,"AANDERAA_OPTODE_PHASE_COEF_2"]
[17,null,null,null,null,null,null,null,null,null,null,null,null,null,6903267,1650,1,0,"AANDERAA_OPTODE_PHASE_COEF_3"]
[17,null,null,null,null,null,null,null,null,null,null,null,null,null,6903267,2068,1,null,"AANDERAA_OPTODE_TEMP_COEF_0"]
[17,null,null,null,null,null,null,null,null,null,null,null,null,null,6903267,2069,1,null,"AANDERAA_OPTODE_TEMP_COEF_1"]
[17,null,null,null,null,null,null,null,null,null,null,null,null,null,6903267,2070,1,null,"AANDERAA_OPTODE_TEMP_COEF_2"]
[17,null,null,null,null,null,null,null,null,null,null,null,null,null,6903267,2071,1,null,"AANDERAA_OPTODE_TEMP_COEF_3"]
[17,null,null,null,null,null,null,null,null,null,null,null,null,null,6903267,2072,1,null,"AANDERAA_OPTODE_TEMP_COEF_4"]
[17,null,null,null,null,null,null,null,null,null,null,null,null,null,6903267,2073,1,null,"AANDERAA_OPTODE_TEMP_COEF_5"]

{"sheet":"Predefined lists","index":1,"n_rows":102,"n_cols":47,"rows_kept":102,"cut":false,"hidden":false,"merged":[]}
["PLATFORM_FAMILY","DEFINITION",null,"PLATFORM_TYPE","DEFINITION",null,"PLATFORM_MAKER","DEFINITION",null,"SENSOR","DEFINITION",null,"SENSOR_MAKER","DEFINITION",null,"SENSOR_MODEL","DEFINITION",null,"CO_VERSION","DEFINITION",null,"SEL_Y_N","DEFINITION",null,"SEL_OK","DEFINITION",null,"BATTERY_TYPE","DEFINITION",null,"INST_TYPE","DEFINITION",null,"RECORDER_CODE","DEFINITION",null,"PARAMETER","long_name","cf standard_name","unit","type",null,"SEA_STATE","DEFINITION",null,"BUOY_DESCRIPTION","DEFINITION"]
["FLOAT","Profiling float",null,"PALACE","Webb Research Corporation – first Argo float model from them",null,"MARTEC","Martec",null,"ACOUSTIC",null,null,"AANDERAA",null,null,"UNKNOWN","to use when necessary",null,null,null,null,null,null,null,null,null,null,"Alkaline",null,null,null,null,null,1,"Sippican strip chart recorder",null,"CNDC","Electrical conductivity","sea_water_electrical_conductivity","mhos/m","c"]
["FLOAT_COASTAL","Coastal float, i.e. ARVOR-C ",null,"APEX","Webb Research Corporation/Teledyne Webb  APEX float",null,"METOCEAN","MetOcean",null,"ACOUSTIC_GEOLOCATION",null,null,"AMETEK",null,null,"FSI",null,null,5.65,"ARVOR Deep + NS&IA + Ice (IFREMER version)",null,"yes",null,null,"OK",null,null,"Lithium",null,null,831,"P-Alace float",null,2,"Sippican MK2A/SSQ-61",null,"PRES","Sea water pressure, equals 0 at sea-level ","sea_water_pressure","decibar","c",null,"Calm (0 to 0.1 m)",null,null,"Water @ 0.5 cm above top of P sensor"]
["FLOAT_DEEP","Profiling Float that is capable of profiling deeper than 2000 dbar",null,"APEX_EM","Webb Research Corporation/Teledyne Webb  APEX ElectroMagnetic float (measures velocity and mixing)",null,"MRV","MRV Systems",null,"CTD_PRES",null,null,"DRUCK",null,null,"SBE",null,null,5.66,"ARVOR Deep + NS&IA + Ice (NKE version)",null,"no",null,null,null,null,null,"Alkaline and Lithium",null,null,837,"Arvor-C float",null,3,"Sippican MK-9",null,"PSAL","Practical salinity","sea_water_salinity","psu","c",null,"Smooth (0.1 to 0.5 m)",null,null,"Water @ top of P sensor"]
["POLAR_OCEAN_PROFILING_SYSTEM","Ice platform that provides meteorological data is paired with a subsurface platform, either a PROVOR CTS-3 or NEMO float tethered along a cable that uses buoyancy to go up and down.",null,"APEX_D","Teledyne Webb  deep profiling APEX float",null,"NKE","NKE Instrumentation",null,"CTD_TEMP",null,null,"FSI",null,null,"SBE37",null,null,null,null,null,null,null,null,null,null,null,null,null,null,838,"Arvor-D float",null,4,"Sippican AN/BHQ-7/MK8",null,"TEMP","Sea temperature in-situ ITS-90 scale","sea_water_temperature","degree_Celsius","c",null,"Slight (0.5 to 1.25 m)",null,null,"Water @ top of buoyancy foam"]
["ICE_TETHERED_PROFILER","Surface ice mounted platform that provides meteorological data and subsurface profiler tethered to a cable that uses a motor to go up and down.",null,"APEX_C","Not yet manufactured",null,"OPTIMARE","Optimare",null,"CTD_CNDC",null,null,"KISTLER",null,null,"SBE41",null,null,null,null,null,null,null,null,null,null,null,null,null,null,839,"Provor-II float",null,5,"Sippican MK-12",null,"DOXY","Dissolved oxygen","moles_of_oxygen_per_unit_mass_in_sea_water","micromole/kg","b",null,"Moderate (1.25 to 2.5 m)"]
[null,null,null,"PROVOR_MT","Metocean PROVOR float",null,"SBE","Seabird",null,"EM",null,null,"PAINE",null,null,"SBE41_V2.5",null,null,null,null,null,null,null,null,null,null,null,null,null,null,840,"Provor, no conductivity",null,6,"Sippican MK-21",null,"TURBIDITY","Sea water turbidity","sea_water_turbidity","ntu","b",null,"Rough (2.5 to 4 m)"]
[null,null,null,"PROVOR","PROVOR float sold by MARTEC or NKE",null,"SIO_IDG","Scripps Institution of Oceanography – Instrument Development Group",null,"FLUOROMETER_CDOM",null,null,"SBE",null,null,"SBE41_V2.6",null,null,null,null,null,null,null,null,null,null,null,null,null,null,841,"Provor, Seabird conductivity sensor",null,7,"Sippican MK-8 Linear Recorder",null,"CHLA","Chlorophyll-A","mass_concentration_of_chlorophyll_a_in_sea_water","mg/m3","b",null,"Very rough (4 to 6 m)"]
[null,null,null,"ARVOR","NKE ARVOR float",null,"TSK","Tsurumi-Seiki Co., Ltd.",null,"FLUOROMETER_CHLA",null,null,"SEASCAN",null,null,"SBE41_V3",null,null,null,null,null,null,null,null,null,null,null,null,null,null,842,"Provor, FSI conductivity sensor",null,8,"Sippican MK-10",null,"CDOM","Concentration of coloured dissolved organic matter in sea water","-","ppb","b",null,"High (6 to 9 m)"]
[null,null,null,"PROVOR_II","NKE dual board PROVOR float",null,"TWR","Teledyne Webb Research (formerly Webb Research Corporation)",null,"IDO_DOXY",null,null,"WETLABS","Wetlabs Inc.",null,"SBE41CP",null,null,null,null,null,null,null,null,null,null,null,null,null,null,843,"POPS ice Buoy/Float",null,10,"Sparton SOC BT/SV Processor Model 100",null,"NITRATE","Nitrate","moles_of_nitrate_per_unit_mass_in_sea_water","micromoles/kg ","b",null,"Very high (9 to 14 m)"]
[null,null,null,"PROVOR_III","NKE dual board PROVOR float new generation",null,"WHOI","Woods Hole Oceanographic Institution",null,"OPTODE_DOXY",null,null,"MBARI","Monterey Bay Aquarium Research Institute",null,"SBE41_IDO_V1.0c","Seabird CTD module with IDO oxygen sensor",null,null,null,null,null,null,null,null,null,null,null,null,null,844,"Arvor, Seabird conductivity sensor",null,11,"Lockheed-Sanders Model OL5005",null,"BISULFIDE","Bisulfide","-","micromoles/kg ","b",null,"Phenomenal (over 14 m)"]
[null,null,null,"ARVOR_C","Coastal ARVOR float",null,"WRC","Webb Research Corporation",null,"RADIOMETER_DOWN_IRR380","Radiometer measuring downwelling irradiance at wavelength <nnn> specified in Table 3 BGC-Argo parameters list",null,"SATLANTIC",null,null,"SBE41_IDO_V2.0","Seabird CTD module with IDO oxygen sensor",null,null,null,null,null,null,null,null,null,null,null,null,null,845,"Webb Research, no conductivity",null,20,"Argos XBT-ST",null,"PH_IN_SITU_TOTAL","pH","sea_water_ph_reported_on_total_scale","dimensionless","b"]
[null,null,null,"ARVOR_D","Deep profiling NKE ARVOR float",null,null,null,null,"RADIOMETER_DOWN_IRR412","Radiometer measuring downwelling irradiance at wavelength <nnn> specified in Table 3 BGC-Argo parameters list",null,"JAC","JFE Advantech Co., Ltd",null,"SBE41CP_IDO_V2.0b","Seabird CTD module with IDO oxygen sensor",null,null,null,null,null,null,null,null,null,null,null,null,null,846,"Webb Research, Seabird sensor",null,21,"CLS-ARGOS / Protecno XBT-ST Model-1",null,"TEMP_DOXY","Sea temperature from oxygene sensor ITS-90 scale","temperature_of_sensor_for_oxygen_in_sea_water","degree_Celsius","i"]
[null,null,null,"SOLO","Scripps Institution of Oceanography – Instrument Development Group SOLO float",null,null,null,null,"RADIOMETER_DOWN_IRR490","Radiometer measuring downwelling irradiance at wavelength <nnn> specified in Table 3 BGC-Argo parameters list",null,"APL_UW","University of Washington, Applied Physics Laboratory",null,"SBE41_IDO_V3.0","Seabird CTD module with IDO oxygen sensor",null,null,null,null,null,null,null,null,null,null,null,null,null,847,"Webb Research, FSI sensor",null,22,"CLS-ARGOS / Protecno XBT-ST Model-2",null,"VOLTAGE_DOXY","Voltage reported by oxygen sensor","-","volt","i"]
[null,null,null,"SOLO_W","Woods Hole Oceanographic Institute SOLO float",null,null,null,null,"RADIOMETER_DOWN_IRR<nnn>","Radiometer measuring downwelling irradiance at wavelength <nnn> specified in Table 3 BGC-Argo parameters list",null,"TSK","Tsurumi-Seiki Co., Ltd.",null,"SBE41CP_V1",null,null,null,null,null,null,null,null,null,null,null,null,null,null,848,"Apex-EM float",null,30,"BATHY Systems SA-810",null,"FREQUENCY_DOXY","Frequency reported by oxygen sensor","-","hertz","i"]
[null,null,null,"SOLO_II","Scripps Institution of Oceanography – Instrument Development Group SOLO-II float",null,null,null,null,"RADIOMETER_PAR",null,null,"RBR","RBR Ltd",null,"SBE41CP_V1.1",null,null,null,null,null,null,null,null,null,null,null,null,null,null,849,"Apex-D deep float",null,31,"Scripps Metrobyte controller",null,"COUNT_DOXY","Count reported by oxygen sensor","-","dimensionless","i"]
[null,null,null,"S2A","MRV SOLOII  float",null,null,null,null,"RADIOMETER_UP_RAD<nnn>","Radiometer measuring upwelling radiance at wavelength <nnn> specified in Table 3 BGC-Argo parameters list",null,"Unknown","Unknown sensor maker",null,"SBE41CP_V1.2",null,null,null,null,null,null,null,null,null,null,null,null,null,null,850,"Solo, no conductivity",null,32,"Murayama Denki Z-60-16 III",null,"BPHASE_DOXY","Uncalibrated phase shift reported by oxygen sensor","-","degree","i"]
[null,null,null,"SOLO_D","Scripps Institution of Oceanography – Instrument Development Group deep SOLO float",null,null,null,null,"BACKSCATTERINGMETER_BBP532","Backscattering meter measuring backscattering at wavelength <nnn> specified in Table 3 BGC-Argo parameters list",null,"KELLER",null,null,"SBE41CP_V1.2a",null,null,null,null,null,null,null,null,null,null,null,null,null,null,851,"Solo,  Seabird conductivity sensor",null,33,"Murayama Denki Z-60-16 II",null,"DPHASE_DOXY","Calibrated phase shift reported by oxygen sensor","-","degree","i"]
[null,null,null,"NINJA","TSK NINJA float",null,null,null,null,"BACKSCATTERINGMETER_BBP700","Backscattering meter measuring backscattering at wavelength <nnn> specified in Table 3 BGC-Argo parameters list",null,"MICRON",null,null,"SBE41CP_V1.3",null,null,null,null,null,null,null,null,null,null,null,null,null,null,852,"Solo, FSI conductivity sensor",null,34,"Protecno ETSM2",null,"TPHASE_DOXY","Uncalibrated phase shift reported by oxygen sensor","-","degree","i"]
[null,null,null,"NINJA_D","TSK NINJA deep float",null,null,null,null,"BACKSCATTERINGMETER_BBP<nnn>","Backscattering meter measuring backscattering at wavelength <nnn> specified in Table 3 BGC-Argo parameters list",null,"SEAPOINT",null,null,"SBE41CP_V1.3b",null,null,null,null,null,null,null,null,null,null,null,null,null,null,853,"Solo2, Seabird conductivity sensor",null,35,"Nautilus Marine Service NMS-XBT",null,"C1PHASE_DOXY","Uncalibrated phase shift reported by oxygen sensor","-","degree","i"]
[null,null,null,"NEMO","OPTIMARE NEMO float",null,null,null,null,"BACKSCATTERINGMETER_TURBIDITY",null,null,"TURNER_DESIGN",null,null,"SBE41CP_V1.4",null,null,null,null,null,null,null,null,null,null,null,null,null,null,854,"S2A float",null,40,"TSK MK-2A",null,"C2PHASE_DOXY","Uncalibrated phase shift reported by oxygen sensor","-","degree","i"]
[null,null,null,"NAVIS_A","Seabird NAVIS float",null,null,null,null,"SPECTROPHOTOMETER_NITRATE",null,null,null,null,null,"SBE41CP_V1.5",null,null,null,null,null,null,null,null,null,null,null,null,null,null,855,"Ninja, no conductivity sensor",null,41,"TSK MK-2S",null,"MOLAR_DOXY","Uncompensated (pressure and salinity) oxygen concentration reported by the oxygen sensor","mole_concentration_of_dissolved_molecular_oxygen_in_sea_water","micromole/l","i"]
[null,null,null,"NOVA","METOCEAN NOVA float",null,null,null,null,"SPECTROPHOTOMETER_BISULFIDE",null,null,null,null,null,"SBE41CP_V1.7",null,null,null,null,null,null,null,null,null,null,null,null,null,null,856,"Ninja, SBE conductivity sensor",null,42,"TSK MK-30",null,"PHASE_DELAY_DOXY","Phase delay reported by oxygen sensor","-","microsecond","i"]
[null,null,null,"ALAMO","MRV/WHOI new float",null,null,null,null,"STS_CNDC",null,null,null,null,null,"SBE41CP_V1.8",null,null,null,null,null,null,null,null,null,null,null,null,null,null,857,"Ninja, FSI conductivity sensor",null,43,"TSK MK-30N",null,"MLPL_DOXY","Oxygen concentration reported by the oxygen sensor","-","ml/l","i"]
[null,null,null,"ITP","Ice Tethered Profiler (with modified WHOI moored profiler driven by a traction drive unit)",null,null,null,null,"STS_TEMP",null,null,null,null,null,"SBE41CP_V1.9",null,null,null,null,null,null,null,null,null,null,null,null,null,null,858,"Ninja, TSK conductivity sensor",null,45,"TSK MK-100",null,"NB_SAMPLE","Number of samples in bin","-","dimensionless","i"]
[null,null,null,"POPS_PROVOR","Polar Ocean Profiling System (with PROVOR CTS-3 float)",null,null,null,null,"TRANSISTOR_PH",null,null,null,null,null,"SBE41CP_V1.9a",null,null,null,null,null,null,null,null,null,null,null,null,null,null,859,"Profiling Float, NEMO, no conductivity",null,46,"TSK MK-100 compatible recorder for both XBT and XCTD",null,"RPHASE_DOXY","Uncalibrated red phase shift reported by oxygen sensor","-","degree","i"]
[null,null,null,"POPS_NEMO","Polar Ocean Profiling System (with NEMO float)",null,null,null,null,"TRANSMISSOMETER_CP660","Transmissometer measuring attenuation at wavelength <nnn> specified in Table 3 BGC-Argo parameters list",null,null,null,null,"SBE41CP_V2",null,null,null,null,null,null,null,null,null,null,null,null,null,null,860,"Profiling Float, NEMO, SBE conductivity sensor",null,47,"TSK MK-1130A XCTD recorder",null,"BETA_BACKSCATTERING","Total angle specific volume from backscattering sensor  at x nanometers","-","count","i"]
[null,null,null,"FLOAT","Generic value when unknown",null,null,null,null,"TRANSMISSOMETER_CP<nnn>","Transmissometer measuring attenuation at wavelength <nnn> specified in Table 3 BGC-Argo parameters list",null,null,null,null,"SBE41CP_V3",null,null,null,null,null,null,null,null,null,null,null,null,null,null,861,"Profiling Float, NEMO, FSI conductivity sensor",null,48,"TSK AXBT receiver MK-300",null,"FLUORESCENCE_CHLA","Chlorophyll-A signal from fluorescence sensor","-","count","i"]
[null,null,null,null,null,null,null,null,null,null,null,null,null,null,null,"SBE41CP_V3.0a",null,null,null,null,null,null,null,null,null,null,null,null,null,null,862,"Solo-D deep float",null,49,"TSK MK-150 Compatible recorder for both XBT and XCTD",null,"TEMP_CPU_CHLA","Thermistor signal from backscattering sensor","-","count","i"]
[null,null,null,null,null,null,null,null,null,null,null,null,null,null,null,"SBE41CP_V3.0c",null,null,null,null,null,null,null,null,null,null,null,null,null,null,863,"Navis-A Float",null,50,"JMA ASTOS",null,"FLUORESCENCE_CDOM","Raw fluorescence from colored dissolved organic mater sensor","-","count","i"]
[null,null,null,null,null,null,null,null,null,null,null,null,null,null,null,"SBE41CP_V4.4.0",null,null,null,null,null,null,null,null,null,null,null,null,null,null,864,"Ninja-D deep float",null,60,"ARGOS communications, sampling on up transit.",null,"SIDE_SCATTERING_TURBIDITY","Turbidity signal from side scattering sensor","-","count","i"]
[null,null,null,null,null,null,null,null,null,null,null,null,null,null,null,"SBE41CP_V5.0.1",null,null,null,null,null,null,null,null,null,null,null,null,null,null,865,"Nova float",null,61,"ARGOS communications, sampling on down transit.",null,"TRANSMITTANCE_PARTICLE_BEAM_ATTENUATION","Beam attenuation from transmissiometer sensor at x nanometers","-","count","i"]
[null,null,null,null,null,null,null,null,null,null,null,null,null,null,null,"SBE41CP_V5.3.0",null,null,null,null,null,null,null,null,null,null,null,null,null,null,null,null,null,62,"Orbcomm communications, sampling on up transit.",null,"UV_INTENSITY_NITRATE","Intensity of ultra violet flux from nitrate sensor","-","count","i"]
[null,null,null,null,null,null,null,null,null,null,null,null,null,null,null,"SBE41CP_V7.2.3",null,null,null,null,null,null,null,null,null,null,null,null,null,null,null,null,null,63,"Orbcomm communications, sampling on down transit.",null,"UV_INTENSITY_DARK_NITRATE","Intensity of ultra violet flux dark measurement from nitrate sensor","-","count","i"]
[null,null,null,null,null,null,null,null,null,null,null,null,null,null,null,"SBE41CP_V7.2.5",null,null,null,null,null,null,null,null,null,null,null,null,null,null,null,null,null,64,"Iridium, communications sampling on up transit",null,"UV_INTENSITY_DARK_SEAWATER_NITRATE","Intensity of ultra-violet flux dark sea water from nitrate sensor","-","count","i"]
[null,null,null,null,null,null,null,null,null,null,null,null,null,null,null,"SBE61_V4.5.2",null,null,null,null,null,null,null,null,null,null,null,null,null,null,null,null,null,65,"Iridium communications, sampling on down transit",null,"E_NITRATE","E nitrate???","-","liter/micromol cm","i"]
[null,null,null,null,null,null,null,null,null,null,null,null,null,null,null,"SBE61_V4.5.3",null,null,null,null,null,null,null,null,null,null,null,null,null,null,null,null,null,70,"CSIRO Devil-1 XBT acquisition system",null,"UV_INTENSITY_REF_NITRATE","Ultra-violet intensity reference from nitrate sensor","-","count","i"]
[null,null,null,null,null,null,null,null,null,null,null,null,null,null,null,"SBE61_V5.0.0",null,null,null,null,null,null,null,null,null,null,null,null,null,null,null,null,null,71,"CSIRO Devil-2 XBT acquisition system",null,"E_SWA_NITRATE","???","-","dimensionless","i"]
[null,null,null,null,null,null,null,null,null,null,null,null,null,null,null,"SBE61_V5.0.1",null,null,null,null,null,null,null,null,null,null,null,null,null,null,null,null,null,80,"Applied Microsystems Ltd., MICRO-SVT&P",null,"TEMP_CAL_NITRATE","Temperature calibration from nitrate sensor","-","degree_Celsius","i"]
[null,null,null,null,null,null,null,null,null,null,null,null,null,null,null,"SBE61",null,null,null,null,null,null,null,null,null,null,null,null,null,null,null,null,null,81,"Sea Mammal Research Unit, Univ. St. Andrews, UK, uncorrected salinity from a sea mammal mounted instrument",null,"ABSORBANCE _COR_NITRATE","Absorbance cor??? from nitrate sensor","-","dimensionless","i"]
[null,null,null,null,null,null,null,null,null,null,null,null,null,null,null,"CTD_F01","TSK model",null,null,null,null,null,null,null,null,null,null,null,null,null,null,null,null,82,"Sea Mammal Research Unit, Univ. St. Andrews, UK, salinity from a sea mammal mounted instrument",null,"MOLAR_NITRATE","Nitrate","-","micromole/l","i"]
[null,null,null,null,null,null,null,null,null,null,null,null,null,null,null,"RBR","RBR model",null,null,null,null,null,null,null,null,null,null,null,null,null,null,null,null,99,"Unknown",null,"FIT_ERROR_NITRATE","Nitrate fit error","-","dimensionless","i"]
[null,null,null,null,null,null,null,null,null,null,null,null,null,null,null,"RBRoem_V1.16","RBR model",null,null,null,null,null,null,null,null,null,null,null,null,null,null,null,null,127,"Missing value",null,"VRS_PH","Voltage difference between reference and source from pH sensor","-","volt","i"]
[null,null,null,null,null,null,null,null,null,null,null,null,null,null,null,"SBE43_IDO","Seabird Electrochemical Dissolved Oxygen IDO sensor (volt output)",null,null,null,null,null,null,null,null,null,null,null,null,null,null,null,null,null,null,null,"PH_IN_SITU_FREE","pH","-","dimensionless","i"]
[null,null,null,null,null,null,null,null,null,null,null,null,null,null,null,"SBE43I","configuration option",null,null,null,null,null,null,null,null,null,null,null,null,null,null,null,null,null,null,null,"PH_IN_SITU_SEAWATER","pH","-","dimensionless","i"]
[null,null,null,null,null,null,null,null,null,null,null,null,null,null,null,"SBE43F_IDO","Seabird Electrochemical Dissolved Oxygen IDO sensor (frequency output)",null,null,null,null,null,null,null,null,null,null,null,null,null,null,null,null,null,null,null,"RAW_DOWNWELLING_IRRADIANCE","Raw downwelling irradiance at x nanometers","-","count","i"]
[null,null,null,null,null,null,null,null,null,null,null,null,null,null,null,"SBE63_OPTODE","Seabird Optical Dissolved Oxygen Sensor",null,null,null,null,null,null,null,null,null,null,null,null,null,null,null,null,null,null,null,"RAW_UPWELLING_RADIANCE","Raw upwelling radiance at x nanometers","-","count","i"]
[null,null,null,null,null,null,null,null,null,null,null,null,null,null,null,"AANDERAA_OPTODE",null,null,null,null,null,null,null,null,null,null,null,null,null,null,null,null,null,null,null,null,"RAW_DOWNWELLING_PAR","Raw downwelling photosynthetic available radiation","-","count","i"]
[null,null,null,null,null,null,null,null,null,null,null,null,null,null,null,"AANDERAA_OPTODE_3830"]
[null,null,null,null,null,null,null,null,null,null,null,null,null,null,null,"AANDERAA_OPTODE_3835"]
[null,null,null,null,null,null,null,null,null,null,null,null,null,null,null,"AANDERAA_OPTODE_3930"]
[null,null,null,null,null,null,null,null,null,null,null,null,null,null,null,"AANDERAA_OPTODE_4330"]
[null,null,null,null,null,null,null,null,null,null,null,null,null,null,null,"AANDERAA_OPTODE_4330F"]
[null,null,null,null,null,null,null,null,null,null,null,null,null,null,null,"ARO_FT","JAC RINKO"]
[null,null,null,null,null,null,null,null,null,null,null,null,null,null,null,"DRUCK_2900PSIA"]
[null,null,null,null,null,null,null,null,null,null,null,null,null,null,null,"DRUCK"]
[null,null,null,null,null,null,null,null,null,null,null,null,null,null,null,"DRUCK_10153PSIA"]
[null,null,null,null,null,null,null,null,null,null,null,null,null,null,null,"PAINE"]
[null,null,null,null,null,null,null,null,null,null,null,null,null,null,null,"PAINE_1500PSIA"]
[null,null,null,null,null,null,null,null,null,null,null,null,null,null,null,"PAINE_1600PSIA"]
[null,null,null,null,null,null,null,null,null,null,null,null,null,null,null,"PAINE_2000PSIA"]
[null,null,null,null,null,null,null,null,null,null,null,null,null,null,null,"PAINE_2900PSIA"]
[null,null,null,null,null,null,null,null,null,null,null,null,null,null,null,"PAINE_3000PSIA"]
[null,null,null,null,null,null,null,null,null,null,null,null,null,null,null,"AMETEK"]
[null,null,null,null,null,null,null,null,null,null,null,null,null,null,null,"AMETEK_3000PSIA"]
[null,null,null,null,null,null,null,null,null,null,null,null,null,null,null,"KISTLER"]
[null,null,null,null,null,null,null,null,null,null,null,null,null,null,null,"KISTLER_2900PSIA"]
[null,null,null,null,null,null,null,null,null,null,null,null,null,null,null,"KISTLER_10153PSIA"]
[null,null,null,null,null,null,null,null,null,null,null,null,null,null,null,"KELLER_PA8"]
[null,null,null,null,null,null,null,null,null,null,null,null,null,null,null,"SEASCAN_SSTD"]
[null,null,null,null,null,null,null,null,null,null,null,null,null,null,null,"MP40_C_2000_G","MICRON"]
[null,null,null,null,null,null,null,null,null,null,null,null,null,null,null,"SBE_STS","SBE Near Surface Conductivity and Temperature Module"]
[null,null,null,null,null,null,null,null,null,null,null,null,null,null,null,"SUNA","UV absorption to derive nitrate and bisulfide (MBARI)"]
[null,null,null,null,null,null,null,null,null,null,null,null,null,null,null,"SUNA_V2","UV absorption to derive nitrate and bisulfide (SATLANTIC)"]
[null,null,null,null,null,null,null,null,null,null,null,null,null,null,null,"ISUS","Nitrate (MBARI)"]
[null,null,null,null,null,null,null,null,null,null,null,null,null,null,null,"ISUS_V3","Nitrate (SATLANTIC)"]
[null,null,null,null,null,null,null,null,null,null,null,null,null,null,null,"C_ROVER","Transmissometer (WETLABS)"]
[null,null,null,null,null,null,null,null,null,null,null,null,null,null,null,"DURA","pH (MBARI)"]
[null,null,null,null,null,null,null,null,null,null,null,null,null,null,null,"SEAFET","pH (SATLANTIC)"]
[null,null,null,null,null,null,null,null,null,null,null,null,null,null,null,"SATLANTIC_OCR504_ICSW","Multispectral radiometer 4 channels (SATLANTIC) with cosine detector to measure irradiance in water (at wavelength <nnn> specified in Table 3 BGC-Argo parameters list)"]
[null,null,null,null,null,null,null,null,null,null,null,null,null,null,null,"SATLANTIC_OCR504_R10W","Multispectral radiometer 4 channels (SATLANTIC) with a 10° half-angle field of view to measure radiance in water (at wavelength <nnn> specified in Table 3 BGC-Argo parameters list)"]
[null,null,null,null,null,null,null,null,null,null,null,null,null,null,null,"SATLANTIC_OCR507_ICSW","Multispectral radiometer 7 channels (SATLANTIC) with cosine detector to measure irradiance in water (at wavelength <nnn> specified in Table 3 BGC-Argo parameters list)"]
[null,null,null,null,null,null,null,null,null,null,null,null,null,null,null,"SATLANTIC_OCR507_R10W","Multispectral radiometer 7 channels (SATLANTIC) with a 10° half-angle field of view to measure radiance in water (at wavelength <nnn> specified in Table 3 BGC-Argo parameters list)"]
[null,null,null,null,null,null,null,null,null,null,null,null,null,null,null,"SATLANTIC_OCR507_ICSWR10W","Multispectral radiometer 7 channels (SATLANTIC) combination of cosine detector to measure irradiance and a 10° half-angle field of view to measure radiance in water (at wavelength <nnn> specified in Table 3 BGC-Argo parameters list)"]
[null,null,null,null,null,null,null,null,null,null,null,null,null,null,null,"ECO_BB","Wetlabs Eco optical sensor packages with one backscattering meter (at wavelength <nnn> specified in Table 3 BGC-Argo parameters list)"]
[null,null,null,null,null,null,null,null,null,null,null,null,null,null,null,"ECO_FL","Wetlabs Eco optical sensor packages with one fluorometer (type specified in SENSOR)"]
[null,null,null,null,null,null,null,null,null,null,null,null,null,null,null,"ECO_NTU","Wetlabs Eco optical sensor packages with one backscattering meter measuring turbidity"]
[null,null,null,null,null,null,null,null,null,null,null,null,null,null,null,"ECO_FLBB","Wetlabs Eco optical sensor packages with one fluorometer (type specified in SENSOR) and one backscattering meter (at wavelength <nnn> specified in Table 3 BGC-Argo parameters list)"]
[null,null,null,null,null,null,null,null,null,null,null,null,null,null,null,"ECO_FLBB_AP2","Wetlabs Eco optical sensor packages with one fluorometer (type specified in SENSOR) and one backscattering meter (wavelength specified in SENSOR) mounted on an Apex float"]
[null,null,null,null,null,null,null,null,null,null,null,null,null,null,null,"ECO_FLBB_2K","Wetlabs Eco optical sensor packages with one fluorometer (type specified in SENSOR) and one backscattering meter (at wavelength <nnn> specified in Table 3 BGC-Argo parameters list) certified for applications down to 2000m"]
[null,null,null,null,null,null,null,null,null,null,null,null,null,null,null,"ECO_FLNTU","Wetlabs Eco optical sensor packages with one fluorometer (type specified in SENSOR) and one backscattering meter measuring turbidity"]
[null,null,null,null,null,null,null,null,null,null,null,null,null,null,null,"ECO_BB2","Wetlabs Eco optical sensor packages with two backscatteringmeters (at wavelength <nnn> specified in Table 3 BGC-Argo parameters list)"]
[null,null,null,null,null,null,null,null,null,null,null,null,null,null,null,"ECO_FLBBCD","Wetlabs Eco optical sensor packages with two fluorometers (type specified in SENSOR) and one backscatteringmeter (at wavelength <nnn> specified in Table 3 BGC-Argo parameters list)"]
[null,null,null,null,null,null,null,null,null,null,null,null,null,null,null,"ECO_FLBB2","Wetlabs Eco optical sensor packages with one fluorometer (type specified in SENSOR) and two backscatteringmeters (at wavelength <nnn> specified in Table 3 BGC-Argo parameters list)"]
[null,null,null,null,null,null,null,null,null,null,null,null,null,null,null,"ECO_BB3","Wetlabs Eco optical sensor packages with 3 backscatteringmeters (at wavelength <nnn> specified in Table 3 BGC-Argo parameters list)"]
[null,null,null,null,null,null,null,null,null,null,null,null,null,null,null,"MCOMS_FLBBCD","Wetlabs MCOMS optical sensor packages with two fluorometers CHLA, CDOM and one backscatteringmeter (at wavelength <nnn> specified in Table 3 BGC-Argo parameters list)"]
[null,null,null,null,null,null,null,null,null,null,null,null,null,null,null,"MCOMS_FLBB2","Wetlabs MCOMS optical sensor packages with one fluorometer CHLA and two backscatteringmeters (wavelengths specified in SENSOR)"]
[null,null,null,null,null,null,null,null,null,null,null,null,null,null,null,"CYCLOPS_7_FLUOROMETER","Turner designs Optical sensor"]
[null,null,null,null,null,null,null,null,null,null,null,null,null,null,null,"SEAPOINT_TURBIDITY_METER","Seapoint turbidity meter"]
[null,null,null,null,null,null,null,null,null,null,null,null,null,null,null,"RAFOS","Receiver mounted on some floats for geopositioning under ice using RAFOS sound sources in the array in the Weddell Sea (Location derivation is done in Delayed Mode for under ice floats equipped with RAFOS receivers)."]
[null,null,null,null,null,null,null,null,null,null,null,null,null,null,null,"PAL_UW","UW Passive acoustic listener"]
[null,null,null,null,null,null,null,null,null,null,null,null,null,null,null,"EM","Electromagnetic sensor package to measure velocity"]